Workbook

Sheet DADOS
A1: 27476 | B1: PO - Planilha Orçamentária / PLQ - Planilha de Levantamento de Quantidades / CFF - Cronograma Físico Financeiro
A2: v008
A4: INSTRUÇÕES DE USO E PREENCHIMENTO
A6: 1. Este documento somente pode ser utilizado nas versões do Excel 2003 ou superior. Não deve ser utilizado versões do BROffice. O Documento deve ser salvo SOMENTE em extensão habilitada para macros (.xls ou .xlsm). Se o documento for salvo na extensão .xlsx, o arquivo será INUTILIZADO.
A8: 2. Para funcionamento pleno desse arquivo, a Segurança de Macros do Excel deve ser habilitada.
A10: 2.1 Na Versão Excel 2003, selecione na Faixa de Opções: Ferramentas --> Macro --> Segurança --> Na aba Nível de Segurança selecione a Opção "Baixo" --> Clique em OK --> Feche e abra o Excel novamente para utilizar a Planilha.
A12: 2.2 Na Versão Excel 2007 ou superior, selecione na Faixa de Opções: Arquivo --> Opções --> Central de Confiabilidade --> Configurações da Central de Confiabilidade --> Configurações de Macro --> Habilitar todas as Macros --> Clique em OK --> Feche e abra o excel novamente para utilizar a Planilha.
A14: 3. O Preenchimento deve ser feito somente nas células em amarelo. As outras células são de preenchimento Automático.
A16: 4. Preferências de Elaboração do Orçamento
A18: 4.1. Preenchimento de Quantidades
A22: 5. Ordem de Preenchimento
A24: 5.1. na Aba DADOS
A26: 5.1.1. Preencha no Quadro abaixo os Dados do TC/CR:
A28: Nº OPERAÇÃO | C28: GESTOR | F28: PROGRAMA | J28: AÇÃO / MODALIDADE | P28: OBJETO
C29: P. MUNICIPAL | F29: RECURSOS PRÓPRIOS | J29: PAVIMENTAÇÃO COM BLOCO DE CONCRETO INTERTRAVADO | P29: PAVIMENTAÇÃO COM BLOCO DE CONCRETO INTERTRAVADO
A31: PROPONENTE / TOMADOR | G31: MUNICÍPIO / UF | K31: LOCALIDADE / ENDEREÇO | Q31: APELIDO DO EMPREENDIMENTO
A32: PREFEITURA MUNICIPAL | G32: SÃO FRANCISCO DE ASSIS/RS | K32: SÃO FRANCISCO DE ASSIS, RUA JOÃO MOREIRA, 1707
A35: 5.1.2. Preencha no quadro abaixo as informações sobre o orçamento:
A37: DATA BASE | C37: DESON. | D37: LOCALIDADE DO SINAPI | G37: DESCRIÇÃO DO LOTE | T37: BDI 1 | U37: BDI 2 | V37: BDI 3 | W37: BDI 4 | X37: BDI 5
A38: 2021-02-01 | C38: Sim | D38: Porto Alegre / RS | G38: RUA JOAO MANOEL-TRECHO EXPEDICIONÁRIO PONTE INHACUNDÁ | T38: =IF(ISERROR(INDIRECT("'BDI ("&RIGHT(T37,1)&")'!N27")),"",INDIRECT("'BDI ("&RIGHT(T37,1)&")'!N27")) -> 0.3 | U38: =IF(ISERROR(INDIRECT("'BDI ("&RIGHT(U37,1)&")'!N27")),"",INDIRECT("'BDI ("&RIGHT(U37,1)&")'!N27")) ->  | V38: =IF(ISERROR(INDIRECT("'BDI ("&RIGHT(V37,1)&")'!N27")),"",INDIRECT("'BDI ("&RIGHT(V37,1)&")'!N27")) ->  | W38: =IF(ISERROR(INDIRECT("'BDI ("&RIGHT(W37,1)&")'!N27")),"",INDIRECT("'BDI ("&RIGHT(W37,1)&")'!N27")) ->  | X38: =IF(ISERROR(INDIRECT("'BDI ("&RIGHT(X37,1)&")'!N27")),"",INDIRECT("'BDI ("&RIGHT(X37,1)&")'!N27")) -> 
A40: 4.1.2. Preencha no quadro abaixo as informações sobre o orçamento licitado:
A42: CTEF n.º | C42: NOME DA EMPRESA | H42: DATA BASE | J42: DESON. | K42: REGIME DE EXECUÇÃO | N42: ACOMP. | O42: OBJETO CTEF | U42: DATA ASSINATURA | W42: VIGÊNCIA
A45: 5.1.3. Preencha a data de Início da Obra:
A47: DATA INÍCIO
A50: 5.1.4. Preencha no(s) Quadro(s) abaixo os Dados do(s) Responsável(is) Técnico(s) pela elaboração do Orçamento:
G52: Exibir o 2° Quadro de Assinatura? | K52: NÃO
A54: Nome: | B54: Arlindo Fumaco | G54: Nome:
A55: =IF(OR(TipoOrçamento="BASE",TipoOrçamento="REPROGRAMADONPL"),"Título:","Cargo:") -> Título: | B55: Engenheiro Civil | G55: =A55 -> Título:
A56: =IF(OR(TipoOrçamento="BASE",TipoOrçamento="REPROGRAMADONPL"),"CREA/CAU:","Empresa:") -> CREA/CAU: | B56: RS37784 | G56: =A56 -> CREA/CAU:
A57: =IF(OR(TipoOrçamento="BASE",TipoOrçamento="REPROGRAMADONPL"),"ART/RRT:","CNPJ:") -> ART/RRT: | B57: 10778196 | G57: =A57 -> ART/RRT:
A60: 5.2. Legenda das Abas
A62: 5.2.1. LARANJA: Aba DADOS. Preenchimento Obrigatório. Impressão Dispensada.
A63: 5.2.2. AMARELO: Abas BDI, PO, PLQ e CFF. Preenchimento e Impressão Obrigatórias. O preenchimento da Aba BDI é dispensada para os casos de Aquisição Direta de Materiais e Equipamentos. A Impressão da Aba PLQ pode ser dispensada para casos de Frente de Obra Única.
A65: 5.3. na Aba BDI (Bonificações e Despesas Indiretas):
A67: 5.3.1. Escolha o tipo de empreendimento.
A68: 5.3.2. Escolha se o BDI será do tipo desonerado ou não (aba DADOS)
A69: 5.3.3. Informe a base de cálculo do ISS (0 a 100%).
A70: 5.3.4. Informe a alíquota do ISS (Normalmente de 2 a 5%).
A71: 5.3.5. Defina na tabela os percentuais a serem adotados para cada item que compõe o BDI nos campos em amarelo.
A72: 5.3.6. Preencha o campo observações se necessário (recomendado para os orçamentos que utilizam mais de um BDI).
A74: 5.4. na Aba PO (Planilha Orçamentária):
A76: 5.4.1. Primeiramente, selecione os níveis de cada item do orçamento na coluna NÍVEL.
A77: 5.4.1.1: O nível de "Serviço" serve tanto para serviços ou insumos (mão-de-obra / material / equipamento / veículo / máquina / ferramenta / etc). Um "nível 2/3/4" é um título (é preenchida apenas a coluna descrição) utilizado para organizar melhor a planilha orçamentária e engloba (agrupa) serviços e agrupadores de nível inferior.
A78: 5.4.2. Após a seleção dos níveis, preencha, para cada serviço, as informações sobre a Fonte de Referência, (SINAPI, SICRO, SIURB, etc) e o respectivo Código de Referência.
A79: 5.4.3. Esta planilha é compatível com o arquivo REFERÊNCIA distribuído pela CAIXA. Caso o arquivo REFERÊNCIA esteja aberto, será possível buscar um código através do botão "Buscar Código". Desta forma a descrição dos serviços será preenchida automaticamente (podendo ser substituída). Caso contrário, seu preenchimento deve ser manual.
A80: 5.4.3.1. As descrições e unidades preenchidas automaticamente ficarão vinculadas ao arquivo REFERÊNCIA até que se use o botão "Fixar Descrições", que quebra a fórmula e transforma as descrições em texto.
A81: 5.4.4. Preencher o custo unitário do serviço/insumo na Coluna CUSTO UNITÁRIO. ATENÇÃO: o custo unitário adotado deve ser menor ou igual ao contido na tabela de referência ou mediana das cotações de mercado.
A82: 5.4.5. Indicar o BDI adotado para cada serviço/insumo na Coluna BDI. Preferencialmente selecione uma das opções da lista suspensa que aparecerá na célula, esta lista contém os 05 BDIs que podem ser preenchidos na Aba BDI (conforme item 5.2 das instruções). Caso seja necessária a adoção de mais de 05 valores diferentes de BDI, digite o percentual diretamente na célula.
A83: 5.4.6. Conforme selecionado no item 4.1. desta Aba, a Coluna Quantidade pode ser preenchida diretamente na PO, ou representar a soma das quantidades de cada Frente de Obra, informadas na aba PLQ (Planilha de Levantamento de Quantitativos).
A84: 5.4.7. OBSERVAÇÃO: As demais colunas (Item / Quantidade / Preço Unitário / Preço Total) são de preenchimento automático. Não tente preenche-las ou alterá-las na Aba PO.
A85: 5.4.8. Se for necessário acrescentar ou excluir linhas da Planilha Orçamentária, utilize o Botão EDITAR PLANILHA e selecione as opções no quadro. ATENÇÃO: quanto maior o número de linhas mais lento será o processamento dos dados, então acrescente apenas o número necessário ou um pouco a mais.
A86: 5.4.8.1. Evite deixar linhas em branco no corpo da Planilha Orçamentária.
A87: 5.4.9. Caso deseje importar os dados de outro arquivo utilize apenas a opção COLAR ESPECIAL ==> VALORES.
A88: 5.4.10. Clique no Botão LICITAR / REPROGRAMAR para preencher o Orçamento Licitado ou Reprogramado.
A90: 5.5. na Aba PLQ (Planilha de Levantamento de Quantitativos):
A92: 5.5.1. Preencha primeiramente as Frentes de Obra.
A93: 5.5.1.1. Exemplos de Frentes de Obra (Rua A trecho 01 / Rua A trecho 02 / Rua B ; UH 01 / UH 02 / UH 03).
A94: 5.5.2. Preencha as quantidades dos serviços por frente de obra. A soma das quantidades de todas as frentes de um determinado serviço será a quantidade exibida na Planilha Orçamentária.
A95: 5.5.3. Caso deseje incluir ou excluir frentes, utilize os botões ADICIONAR e EXCLUIR.
A97: 5.6. na Aba CFF (Cronograma Físico-Financeiro):
A99: 5.6.1. Preencha a data de início da obra na aba Dados.
A100: 5.6.2. Preencha as porcentagens previstas por parcela para cada meta ou macrosserviço.
A101: 5.6.3. Para atualizar o Cronograma conforme o Orçamento e incluir ou excluir parcelas, utilize o botão EDITAR / ATUALIZAR CRONOGRAMA.
L107: (Selecione uma Localidade)
L108: Aracaju / SE | S108: =T38 -> 0.3
L109: Belém / PA | S109: =U38 -> 
L110: Belo Horizonte / MG | S110: =V38 -> 
L111: Boa Vista / RR | S111: =W38 -> 
L112: Brasília / DF | S112: =X38 -> 
L113: Campo Grande / MS
L114: Cuiabá / MT
L115: Curitiba / PR | P115: Empreitada Preço Global
L116: Florianópolis / SC | P116: Empreitada Preço Unitário
L117: Fortaleza / CE | P117: Empreitada Integral
L118: Goiânia / GO | P118: Tarefa
L119: João Pessoa / PB | P119: Contratação Integrada
L120: Macapá / AP | P120: Não se aplica
L121: Maceió / AL
L122: Manaus / AM | P122: BM
L123: Natal / RN | P123: PLE
L124: Palmas / TO
L125: Porto Alegre / RS
L126: Porto Velho / RO
L127: Recife / PE
L128: Rio Branco / AC
L129: Rio de Janeiro / RJ
L130: Salvador / BA
L131: São Luís / MA
L132: São Paulo / SP
L133: Teresina / PI
L134: Vitória / ES
A220: =A28 -> Nº OPERAÇÃO | C220: =C28 -> GESTOR | F220: =F28 -> PROGRAMA | J220: =J28 -> AÇÃO / MODALIDADE | P220: =P28 -> OBJETO
A221: =IF(A29="","",A29) ->  | C221: =IF(C29="","",C29) -> P. MUNICIPAL | F221: =IF(F29="","",F29) -> RECURSOS PRÓPRIOS | J221: =IF(J29="","",J29) -> PAVIMENTAÇÃO COM BLOCO DE CONCRETO INTERTRAVADO | L221: =IF(#REF!="","",#REF!) ->  | N221: =IF(#REF!="","",#REF!) ->  | P221: =IF(P29="","",P29) -> PAVIMENTAÇÃO COM BLOCO DE CONCRETO INTERTRAVADO
A223: =A31 -> PROPONENTE / TOMADOR | G223: =G31 -> MUNICÍPIO / UF | K223: =K31 -> LOCALIDADE / ENDEREÇO | Q223: =Q31 -> APELIDO DO EMPREENDIMENTO
A224: =IF(A32="","",A32) -> PREFEITURA MUNICIPAL | G224: =IF(G32="","",G32) -> SÃO FRANCISCO DE ASSIS/RS | H224: =IF(I32="","",I32) ->  | J224: =IF(#REF!="","",#REF!) ->  | K224: =IF(K32="","",K32) -> SÃO FRANCISCO DE ASSIS, RUA JOÃO MOREIRA, 1707 | Q224: =IF(Q32="","",Q32) -> 
A226: =A37 -> DATA BASE | C226: =C37 -> DESON. | D226: =D37 -> LOCALIDADE DO SINAPI | G226: =G37 -> DESCRIÇÃO DO LOTE | T226: =T37 -> BDI 1 | U226: =U37 -> BDI 2 | V226: =V37 -> BDI 3 | W226: =W37 -> BDI 4 | X226: =X37 -> BDI 5
A227: =IF(A38="","",A38) -> 2021-02-01 | C227: =IF(C38="","",C38) -> Sim | D227: Porto Alegre / RS | G227: RUA JOAO MANOEL-TRECHO EXPEDICIONÁRIO PONTE INHACUNDÁ | T227: 0.3
A229: CTEF n.º | C229: NOME DA EMPRESA / CNPJ: | H229: DATA BASE | J229: DESON. | K229: REGIME DE EXECUÇÃO | N229: ACOMP. | O229: OBJETO CTEF | U229: DATA ASSINATURA | W229: VIGÊNCIA
A230: =IF(A43="","",A43) ->  | C230: =IF(C43="","",C43) ->  | E230: =IF(E43="","",E43) ->  | G230: =IF(G43="","",G43) ->  | H230: =IF(H43="","",H43) ->  | I230: =IF(I43="","",I43) ->  | J230: =IF(J43="","",J43) ->  | K230: =IF(K43="","",K43) ->  | M230: =IF(M43="","",M43) ->  | N230: =IF(N43="","",N43) ->  | O230: =IF(O43="","",O43) ->  | Q230: =IF(Q43="","",Q43) ->  | S230: =IF(S43="","",S43) ->  | U230: =IF(U43="","",U43) ->  | W230: =IF(W43="","",W43) -> 

Sheet BDI (1)
E1: MIN | F1: MED | G1: MAX | N1: ="Quadro de Composição do BDI "&MID(CELL("nome.arquivo",N1),5+FIND("BDI (",CELL("nome.arquivo",N1)),1) -> Quadro de Composição do BDI 1
A2: Construção e Reforma de Edifícios | B2: AC | C2: =CONCATENATE(A2,"-",B2) -> Construção e Reforma de Edifícios-AC | E2: 0.03 | F2: 0.04 | G2: 0.055
A3: =A2 -> Construção e Reforma de Edifícios | B3: SG | C3: Construção e Reforma de Edifícios-SG | E3: 0.008 | F3: 0.008 | G3: 0.01
A4: =A3 -> Construção e Reforma de Edifícios | B4: R | C4: Construção e Reforma de Edifícios-R | E4: 0.0097 | F4: 0.0127 | G4: 0.0127 | I4: Nº TC/CR | K4: PROPONENTE / TOMADOR
A5: =A4 -> Construção e Reforma de Edifícios | B5: DF | C5: Construção e Reforma de Edifícios-DF | E5: 0.0059 | F5: 0.0123 | G5: 0.0139 | I5: =DADOS!A29 -> 0 | K5: =DADOS!A32 -> PREFEITURA MUNICIPAL
A6: =A5 -> Construção e Reforma de Edifícios | B6: L | C6: Construção e Reforma de Edifícios-L | E6: 0.0616 | F6: 0.074 | G6: 0.0896
A7: =A6 -> Construção e Reforma de Edifícios | B7: BDI PAD | C7: Construção e Reforma de Edifícios-BDI PAD | E7: 0.2034 | F7: 0.2212 | G7: 0.25 | I7: OBJETO
A8: Construção de Praças Urbanas, Rodovias, Ferrovias e recapeamento e pavimentação de vias urbanas | B8: AC | C8: Construção de Praças Urbanas, Rodovias, Ferrovias e recapeamento e pavimentação de vias urbanas-AC | E8: 0.038 | F8: 0.0401 | G8: 0.0467 | I8: =DADOS!P29 -> PAVIMENTAÇÃO COM BLOCO DE CONCRETO INTERTRAVADO
A9: Construção de Praças Urbanas, Rodovias, Ferrovias e recapeamento e pavimentação de vias urbanas | B9: SG | C9: Construção de Praças Urbanas, Rodovias, Ferrovias e recapeamento e pavimentação de vias urbanas-SG | E9: 0.0032 | F9: 0.004 | G9: 0.0074
A10: Construção de Praças Urbanas, Rodovias, Ferrovias e recapeamento e pavimentação de vias urbanas | B10: R | C10: Construção de Praças Urbanas, Rodovias, Ferrovias e recapeamento e pavimentação de vias urbanas-R | E10: 0.005 | F10: 0.0056 | G10: 0.0097 | I10: TIPO DE OBRA DO EMPREENDIMENTO | Q10: DESONERAÇÃO
A11: Construção de Praças Urbanas, Rodovias, Ferrovias e recapeamento e pavimentação de vias urbanas | B11: DF | C11: Construção de Praças Urbanas, Rodovias, Ferrovias e recapeamento e pavimentação de vias urbanas-DF | E11: 0.0102 | F11: 0.0111 | G11: 0.0121 | I11: Construção de Praças Urbanas, Rodovias, Ferrovias e recapeamento e pavimentação de vias urbanas | Q11: =DADOS!$C$38 -> Sim
A12: Construção de Praças Urbanas, Rodovias, Ferrovias e recapeamento e pavimentação de vias urbanas | B12: L | C12: Construção de Praças Urbanas, Rodovias, Ferrovias e recapeamento e pavimentação de vias urbanas-L | E12: 0.0664 | F12: 0.073 | G12: 0.0869
A13: Construção de Praças Urbanas, Rodovias, Ferrovias e recapeamento e pavimentação de vias urbanas | B13: BDI PAD | C13: Construção de Praças Urbanas, Rodovias, Ferrovias e recapeamento e pavimentação de vias urbanas-BDI PAD | E13: 0.196 | F13: 0.2097 | G13: 0.2423 | I13: Conforme legislação tributária municipal, definir estimativa de percentual da base de cálculo para o ISS: | Q13: 1
A14: Construção de Redes de Abastecimento de Água, Coleta de Esgoto | B14: AC | C14: Construção de Redes de Abastecimento de Água, Coleta de Esgoto-AC | E14: 0.0343 | F14: 0.0493 | G14: 0.0671 | I14: Sobre a base de cálculo, definir a respectiva alíquota do ISS (entre 2% e 5%): | Q14: 0.04
A15: =A14 -> Construção de Redes de Abastecimento de Água, Coleta de Esgoto | B15: SG | C15: Construção de Redes de Abastecimento de Água, Coleta de Esgoto-SG | E15: 0.0028 | F15: 0.0049 | G15: 0.0075
I16: Itens | M16: Siglas | N16: % Adotado | O16: Situação | P16: 1º Quartil | Q16: Médio | R16: 3º Quartil | T16: =IF(V27,"Para BDI fora do intervalo estatístico, deve ser apresentado Relatório Técnico Circunstanciado justificando a adoção do percentual de cada parcela do BDI.","") -> 
A17: =A15 -> Construção de Redes de Abastecimento de Água, Coleta de Esgoto | B17: R | C17: Construção de Redes de Abastecimento de Água, Coleta de Esgoto-R | E17: 0.01 | F17: 0.0139 | G17: 0.0174
A18: =A17 -> Construção de Redes de Abastecimento de Água, Coleta de Esgoto | B18: DF | C18: Construção de Redes de Abastecimento de Água, Coleta de Esgoto-DF | E18: 0.0094 | F18: 0.0099 | G18: 0.0117 | I18: =IF($I$11=$A$59,"Encargos Sociais incidentes sobre a mão de obra","Administração Central") -> Administração Central | M18: =IF($I$11=$A$59,"K1","AC") -> AC | N18: 0.04 | O18: - | P18: =VLOOKUP(CONCATENATE(I$11,"-",M18),$C$2:$G$49,3,FALSE) -> 0.038 | Q18: =VLOOKUP(CONCATENATE(I$11,"-",M18),$C$2:$G$49,4,FALSE) -> 0.0401 | R18: =VLOOKUP(CONCATENATE(I$11,"-",M18),$C$2:$G$49,5,FALSE) -> 0.0467
A19: =A18 -> Construção de Redes de Abastecimento de Água, Coleta de Esgoto | B19: L | C19: Construção de Redes de Abastecimento de Água, Coleta de Esgoto-L | E19: 0.0674 | F19: 0.0804 | G19: 0.094 | I19: =IF($I$11=$A$59,"Administração Central da empresa ou consultoria - overhead","Seguro e Garantia") -> Seguro e Garantia | M19: =IF($I$11=$A$59,"K2","SG") -> SG | N19: 0.0045 | O19: - | P19: =VLOOKUP(CONCATENATE(I$11,"-",M19),$C$2:$G$49,3,FALSE) -> 0.0032 | Q19: =VLOOKUP(CONCATENATE(I$11,"-",M19),$C$2:$G$49,4,FALSE) -> 0.004 | R19: =VLOOKUP(CONCATENATE(I$11,"-",M19),$C$2:$G$49,5,FALSE) -> 0.0074
A20: =A19 -> Construção de Redes de Abastecimento de Água, Coleta de Esgoto | B20: BDI PAD | C20: Construção de Redes de Abastecimento de Água, Coleta de Esgoto-BDI PAD | E20: 0.2076 | F20: 0.2418 | G20: 0.2644 | I20: =IF($I$11=$A$59,"","Risco") -> Risco | M20: =IF($I$11=$A$59,"","R") -> R | N20: 0.0058 | O20: - | P20: =VLOOKUP(CONCATENATE(I$11,"-",M20),$C$2:$G$49,3,FALSE) -> 0.005 | Q20: =VLOOKUP(CONCATENATE(I$11,"-",M20),$C$2:$G$49,4,FALSE) -> 0.0056 | R20: =VLOOKUP(CONCATENATE(I$11,"-",M20),$C$2:$G$49,5,FALSE) -> 0.0097
A21: Construção e Manutenção de Estações e Redes de Distribuição de Energia Elétrica | B21: AC | C21: Construção e Manutenção de Estações e Redes de Distribuição de Energia Elétrica-AC | E21: 0.0529 | F21: 0.0592 | G21: 0.0793 | I21: =IF($I$11=$A$59,"","Despesas Financeiras") -> Despesas Financeiras | M21: =IF($I$11=$A$59,"","DF") -> DF | N21: 0.0115 | O21: - | P21: =VLOOKUP(CONCATENATE(I$11,"-",M21),$C$2:$G$49,3,FALSE) -> 0.0102 | Q21: =VLOOKUP(CONCATENATE(I$11,"-",M21),$C$2:$G$49,4,FALSE) -> 0.0111 | R21: =VLOOKUP(CONCATENATE(I$11,"-",M21),$C$2:$G$49,5,FALSE) -> 0.0121
A22: =A21 -> Construção e Manutenção de Estações e Redes de Distribuição de Energia Elétrica | B22: SG | C22: Construção e Manutenção de Estações e Redes de Distribuição de Energia Elétrica-SG | E22: 0.0025 | F22: 0.0051 | G22: 0.0056 | I22: =IF($I$11=$A$59,"Margem bruta da empresa de consultoria","Lucro") -> Lucro | M22: =IF($I$11=$A$59,"K3","L") -> L | N22: 0.075 | O22: - | P22: =VLOOKUP(CONCATENATE(I$11,"-",M22),$C$2:$G$49,3,FALSE) -> 0.0664 | Q22: =VLOOKUP(CONCATENATE(I$11,"-",M22),$C$2:$G$49,4,FALSE) -> 0.073 | R22: =VLOOKUP(CONCATENATE(I$11,"-",M22),$C$2:$G$49,5,FALSE) -> 0.0869
A23: =A22 -> Construção e Manutenção de Estações e Redes de Distribuição de Energia Elétrica | B23: R | C23: Construção e Manutenção de Estações e Redes de Distribuição de Energia Elétrica-R | E23: 0.01 | F23: 0.0148 | G23: 0.0197 | I23: Tributos (impostos COFINS 3%, e PIS 0,65%) | M23: CP | N23: 0.0365 | O23: - | P23: 0.0365 | Q23: 0.0365 | R23: 0.0365
A24: =A23 -> Construção e Manutenção de Estações e Redes de Distribuição de Energia Elétrica | B24: DF | C24: Construção e Manutenção de Estações e Redes de Distribuição de Energia Elétrica-DF | E24: 0.0101 | F24: 0.0107 | G24: 0.0111 | I24: Tributos (ISS, variável de acordo com o município) | M24: ISS | N24: =IF($I$11<>$A$58,Q14*Q13,0) -> 0.04 | O24: - | P24: 0 | Q24: 0.025 | R24: 0.05
A25: =A24 -> Construção e Manutenção de Estações e Redes de Distribuição de Energia Elétrica | B25: L | C25: Construção e Manutenção de Estações e Redes de Distribuição de Energia Elétrica-L | E25: 0.08 | F25: 0.0831 | G25: 0.0951 | I25: Tributos (Contribuição Previdenciária sobre a Receita Bruta - 0% ou 4,5% - Desoneração) | M25: CPRB | N25: =IF(AND($I$11<>$A$58,Q11="Sim"),4.5%,0%) -> 0.045 | O25: =IF(AND(N25>=P25, N25<=R25), "OK", "Não OK") -> OK | P25: 0 | Q25: 0.045 | R25: 0.045
A26: =A25 -> Construção e Manutenção de Estações e Redes de Distribuição de Energia Elétrica | B26: BDI PAD | C26: Construção e Manutenção de Estações e Redes de Distribuição de Energia Elétrica-BDI PAD | E26: 0.24 | F26: 0.2584 | G26: 0.2786 | I26: BDI SEM desoneração (Fórmula Acórdão TCU) | M26: BDI PAD | N26: =IF($I$11=$A$58,0,ROUND((((1+N18+N19+N20)*(1+N21)*(1+N22)/(1-(N23+N24)))-1),4)) -> 0.2367 | O26: =IF(OR($I$11=$A$59,$I$11=$A$58,AND(N26>=P26, N26<=R26)), "OK", "FORA DO INTERVALO") -> OK | P26: =IF($I$11=$A$58,0,VLOOKUP(CONCATENATE($I$11,"-",$M26),$C$2:$G$49,3,FALSE)) -> 0.196 | Q26: =IF($I$11=$A$58,0,VLOOKUP(CONCATENATE($I$11,"-",$M26),$C$2:$G$49,4,FALSE)) -> 0.2097 | R26: =IF($I$11=$A$58,0,VLOOKUP(CONCATENATE($I$11,"-",$M26),$C$2:$G$49,5,FALSE)) -> 0.2423
A27: Obras Portuárias, Marítimas e Fluviais | B27: AC | C27: Obras Portuárias, Marítimas e Fluviais-AC | E27: 0.04 | F27: 0.0552 | G27: 0.0785 | I27: BDI COM desoneração | M27: BDI DES | N27: =IF($I$11=$A$58,0,ROUND((((1+N18+N19+N20)*(1+N21)*(1+N22)/(1-(N23+N24+N25)))-1),4)) -> 0.3 | O27: =IF(Q11<>"Sim","",O26) -> OK | V27: =AND(COUNTA(N18:N23)=6,O26<>"ok",NOT(V29)) -> FALSE | W27: pedir anexo
A28: =A27 -> Obras Portuárias, Marítimas e Fluviais | B28: SG | C28: Obras Portuárias, Marítimas e Fluviais-SG | E28: 0.0081 | F28: 0.0122 | G28: 0.0199
A29: =A28 -> Obras Portuárias, Marítimas e Fluviais | B29: R | C29: Obras Portuárias, Marítimas e Fluviais-R | E29: 0.0146 | F29: 0.0232 | G29: 0.0316 | I29: =IF(V29,"X","") ->  | J29: Anexo: Relatório Técnico Circunstanciado justificando a adoção do percentual de cada parcela do BDI. | V29: FALSE | W29: anexo apresentado
I31: Os valores de BDI foram calculados com o emprego da fórmula:
A32: =A29 -> Obras Portuárias, Marítimas e Fluviais | B32: DF | C32: Obras Portuárias, Marítimas e Fluviais-DF | E32: 0.0094 | F32: 0.0102 | G32: 0.0133 | L32: =IF(Q11="Sim","BDI.DES =","BDI.PAD =") -> BDI.DES = | M32: =IF($I$11=$A$59,"(1+K1+K2)*(1+K3)","(1+AC + S + R + G)*(1 + DF)*(1+L)") -> (1+AC + S + R + G)*(1 + DF)*(1+L) | P32: - 1
A33: =A32 -> Obras Portuárias, Marítimas e Fluviais | B33: L | C33: Obras Portuárias, Marítimas e Fluviais-L | E33: 0.0714 | F33: 0.084 | G33: 0.1043 | M33: =IF(Q11="Sim","(1-CP-ISS-CRPB)","(1-CP-ISS)") -> (1-CP-ISS-CRPB)
A34: =A33 -> Obras Portuárias, Marítimas e Fluviais | B34: BDI PAD | C34: Obras Portuárias, Marítimas e Fluviais-BDI PAD | E34: 0.228 | F34: 0.2748 | G34: 0.3095
I35: =CONCATENATE("Declaro para os devidos fins que, conforme legislação tributária municipal, a base de cálculo para ",I11,", é de ",Q13*100,"%, com a respectiva alíquota de ",Q14*100,"%.") -> Declaro para os devidos fins que, conforme legislação tributária municipal, a base de cálculo para Construção de Praças Urbanas, Rodovias, Ferrovias e recapeamento e pavimentação de vias urbanas, é de 100%, com a respectiva alíquota de 4%.
I37: =CONCATENATE("Declaro para os devidos fins que o regime de Contribuição Previdenciária sobre a Receita Bruta adotado para elaboração do orçamento foi ",IF(Q11="Sim","COM","SEM")," Desoneração, e que esta é a alternativa mais adequada para a Administração Pública.") -> Declaro para os devidos fins que o regime de Contribuição Previdenciária sobre a Receita Bruta adotado para elaboração do orçamento foi COM Desoneração, e que esta é a alternativa mais adequada para a Administração Pública.
A38: Fornecimento de Materiais e Equipamentos (aquisição indireta - em conjunto com licitação de obras) | B38: AC | C38: Fornecimento de Materiais e Equipamentos (aquisição indireta - em conjunto com licitação de obras)-AC | E38: 0.015 | F38: 0.0345 | G38: 0.0449
A39: =A38 -> Fornecimento de Materiais e Equipamentos (aquisição indireta - em conjunto com licitação de obras) | B39: SG | C39: Fornecimento de Materiais e Equipamentos (aquisição indireta - em conjunto com licitação de obras)-SG | E39: 0.003 | F39: 0.0048 | G39: 0.0082 | I39: Observações:
A40: =A39 -> Fornecimento de Materiais e Equipamentos (aquisição indireta - em conjunto com licitação de obras) | B40: R | C40: Fornecimento de Materiais e Equipamentos (aquisição indireta - em conjunto com licitação de obras)-R | E40: 0.0056 | F40: 0.0085 | G40: 0.0089
A41: =A40 -> Fornecimento de Materiais e Equipamentos (aquisição indireta - em conjunto com licitação de obras) | B41: DF | C41: Fornecimento de Materiais e Equipamentos (aquisição indireta - em conjunto com licitação de obras)-DF | E41: 0.0085 | F41: 0.0085 | G41: 0.0111
A42: =A41 -> Fornecimento de Materiais e Equipamentos (aquisição indireta - em conjunto com licitação de obras) | B42: L | C42: Fornecimento de Materiais e Equipamentos (aquisição indireta - em conjunto com licitação de obras)-L | E42: 0.035 | F42: 0.0511 | G42: 0.0622 | I42: =PO!K43 -> SÃO FRANCISCO DE ASSIS/RS | O42: =PO!K46 -> 2021-06-14
A43: =A42 -> Fornecimento de Materiais e Equipamentos (aquisição indireta - em conjunto com licitação de obras) | B43: BDI PAD | C43: Fornecimento de Materiais e Equipamentos (aquisição indireta - em conjunto com licitação de obras)-BDI PAD | E43: 0.111 | F43: 0.1402 | G43: 0.168 | I43: Local | O43: Data
A44: Estudos e Projetos, Planos e Gerenciamento e outros correlatos | B44: K1 | C44: Estudos e Projetos, Planos e Gerenciamento e outros correlatos-K1 | E44: - | F44: - | G44: -
A45: =A44 -> Estudos e Projetos, Planos e Gerenciamento e outros correlatos | B45: K2 | C45: Estudos e Projetos, Planos e Gerenciamento e outros correlatos-K2 | E45: - | F45: 0.2 | G45: -
A46: =A45 -> Estudos e Projetos, Planos e Gerenciamento e outros correlatos | C46: Estudos e Projetos, Planos e Gerenciamento e outros correlatos- | E46: - | F46: - | G46: - | I46: Responsável Técnico | O46: Responsável Tomador
A47: =A46 -> Estudos e Projetos, Planos e Gerenciamento e outros correlatos | C47: Estudos e Projetos, Planos e Gerenciamento e outros correlatos- | E47: - | F47: - | G47: - | I47: Nome: | J47: =DADOS!B54 -> Arlindo Fumaco | O47: Nome: | P47: Paulo Renato Cortelini
A48: =A47 -> Estudos e Projetos, Planos e Gerenciamento e outros correlatos | B48: K3 | C48: Estudos e Projetos, Planos e Gerenciamento e outros correlatos-K3 | E48: - | F48: 0.12 | G48: - | I48: Título: | J48: =DADOS!B55 -> Engenheiro Civil | O48: Cargo: | P48: Prefeito Municipal
A49: =A48 -> Estudos e Projetos, Planos e Gerenciamento e outros correlatos | B49: BDI PAD | C49: Estudos e Projetos, Planos e Gerenciamento e outros correlatos-BDI PAD | E49: - | F49: - | G49: - | I49: =DADOS!A56 -> CREA/CAU: | J49: =DADOS!B56 -> RS37784
I50: =DADOS!A57 -> ART/RRT: | J50: =DADOS!B57 -> 10778196
A52: Construção e Reforma de Edifícios
A53: Construção de Praças Urbanas, Rodovias, Ferrovias e recapeamento e pavimentação de vias urbanas
A54: Construção de Redes de Abastecimento de Água, Coleta de Esgoto
A55: Construção e Manutenção de Estações e Redes de Distribuição de Energia Elétrica
A56: Obras Portuárias, Marítimas e Fluviais
A57: Fornecimento de Materiais e Equipamentos (aquisição indireta - em conjunto com licitação de obras)
A58: Fornecimento de Materiais e Equipamentos (aquisição direta)
A59: Estudos e Projetos, Planos e Gerenciamento e outros correlatos

Sheet PO
N1: PO - PLANILHA ORÇAMENTÁRIA | T1: Grau de Sigilo
B2: LOTE | C2: Meta | D2: Nível 2 | E2: Nível 3 | F2: Nível 4 | G2: Serviço | N2: =CHOOSE(1+LOG(1+2*(TipoOrçamento="BASE")+4*(TipoOrçamento="LICITADO")+8*(TipoOrçamento="REPROGRAMADOAC")+16*(TipoOrçamento="REPROGRAMADONPL"),2),"nada","Orçamento Base para Licitação","Orçamento Licitado","Orçamento Licitado Reprogramado","Orçamento Base para Licitação - Reprogramado") -> Orçamento Base para Licitação | T2: #PUBLICO | W2: Arredondamento
W3: Quantidade | X3: TRUE
A4: Nmax | U4: ERRO GERAL | W4: Custo Unitáro | X4: TRUE
A5: =MAX($A$12:$A$32) -> 2 | U5: =IF(COUNTIF($U$12:OFFSET($U$32,-1,0),"DESCRIÇÃO")+COUNTIF($U$12:OFFSET($U$32,-1,0),"UNIDADE")+COUNTIF($U$12:OFFSET($U$32,-1,0),"SEM VALOR")>0,"NÃO OK","OK") -> OK | W5: BDI | X5: TRUE
W6: Preço Unitário | X6: TRUE
W7: Preço Total | X7: TRUE
P9: =OFFSET(PLQ!$E$12,ROW($P9)-ROW(P$12),0) -> -
A10: Nível | B10: Altura | C10: n1 | D10: n2 | E10: n3 | F10: n4 | G10: n5 | H10: Czero | I10: Cnível | J10: Nível | K10: Item | L10: Fonte | M10: Código | N10: Descrição | O10: Unidade | P10: Quantidade | Q10: =IF(OR(TipoOrçamento="LICITADO",TipoOrçamento="REPROGRAMADOAC"),"Preço Unitário (R$)","Custo Unitário (R$)") -> Custo Unitário (R$) | R10: BDI (%) | S10: Preço Unitário (R$) | T10: Preço Total (R$) | U10: Erro de Dados | V10: Lista Crono | W10: Concatenação Fonte-Código | X10: BancoRef | Y10: =IF(TipoOrçamento="LICITADO","Preço Unitário Edital (R$)","Custo Unitário Referência (R$)") -> Custo Unitário Referência (R$) | Z10: =IF(TipoOrçamento="LICITADO","Valor BDI Edital","Valor BDI") -> Valor BDI
A11: =CHOOSE(1+LOG(1+2*(J11="Meta")+4*(J11="Nível 2")+8*(J11="Nível 3")+16*(J11="Nível 4")+32*(J11="Serviço"),2),0,1,2,3,4,"S") -> S | B11: =IF(OR(A11="S",A11=0),0,IF(ISERROR(I11),H11,SMALL(H11:I11,1))) -> 0 | C11: =IF($A11=1,OFFSET(C11,-1,0)+1,OFFSET(C11,-1,0)) -> n1 | D11: =IF($A11=1,0,IF($A11=2,OFFSET(D11,-1,0)+1,OFFSET(D11,-1,0))) -> n2 | E11: =IF(AND($A11<=2,$A11<>0),0,IF($A11=3,OFFSET(E11,-1,0)+1,OFFSET(E11,-1,0))) -> n3 | F11: =IF(AND($A11<=3,$A11<>0),0,IF($A11=4,OFFSET(F11,-1,0)+1,OFFSET(F11,-1,0))) -> n4 | G11: =IF(AND($A11<=4,$A11<>0),0,IF($A11="S",OFFSET(G11,-1,0)+1,OFFSET(G11,-1,0))) ->  | H11: =IF(OR($A11="S",$A11=0),0,MATCH(0,OFFSET($B11,1,$A11,ROW($A$32)-ROW($A11)),0)) -> 0 | I11: =IF(OR($A11="S",$A11=0),0,MATCH(OFFSET($B11,0,$A11)+1,OFFSET($B11,1,$A11,ROW($A$32)-ROW($A11)),0)) -> 0 | J11: Serviço | K11: =IF($A11=0,"-",CONCATENATE(C11&".",IF(AND($A$5>=2,$A11>=2),D11&".",""),IF(AND($A$5>=3,$A11>=3),E11&".",""),IF(AND($A$5>=4,$A11>=4),F11&".",""),IF($A11="S",G11&".",""))) ->  | N11: =IF($A11="S",Referencia.Descricao,"(digite a descrição aqui)") ->  | O11: =Referencia.Unidade ->  | R11: BDI 1 | S11: =IF($A11="S",IF($Q$10="Preço Unitário (R$)",PO.CustoUnitario,ROUND(PO.CustoUnitario*(1+$Z11),15-13*$X$6)),0) -> 0 | T11: =IF($A11="S",VTOTAL1,IF($A11=0,0,ROUND(SomaAgrup,15-13*$X$7))) -> 0 | U11: =IF($J11="","",IF($N11="","DESCRIÇÃO",IF(AND($J11="Serviço",$O11=""),"UNIDADE",IF($T11<=0,"SEM VALOR",IF(AND($Y11<>"",$Q11>$Y11),"ACIMA REF.",""))))) -> DESCRIÇÃO | V11: =IF(OR($A11=0,$A11="S",$A11>CFF!$A$9),"",MAX(V$12:OFFSET(V11,-1,0))+1) ->  | W11: =IF(AND($J11="Serviço",$M11<>""),IF($L11="",$M11,CONCATENATE($L11,"-",$M11))) -> FALSE | X11: =IF(AND(Fonte<>"",Código<>""),MATCH(Fonte&" "&IF(Fonte="sinapi",SUBSTITUTE(SUBSTITUTE(Código,"/00","/"),"/0","/"),Código),INDIRECT("'[Referência "&_xlnm.Database&".xls]Banco'!$a:$a"),0),"X") -> X | Y11: =IF(Import.Desoneracao="sim",Referencia.Desonerado,Referencia.NaoDesonerado) -> 0 | Z11: =ROUND(IF(ISNUMBER(R11),R11,IF(LEFT(R11,3)="BDI",HLOOKUP(R11,DADOS!$T$37:$X$38,2,FALSE),0)),15-11*$X$5) -> 0.3
A12: 0 | B12: =COUNTA(OFFSET(B12,1,0):B$32) -> 19 | J12: =IF(OR(TipoOrçamento="LICITADO",TipoOrçamento="REPROGRAMADOAC"),"CTEF","LOTE") -> LOTE | K12: 0 | N12: =IF(TipoOrçamento="LICITADO",DADOS!O43,DADOS!G38) -> RUA JOAO MANOEL-TRECHO EXPEDICIONÁRIO PONTE INHACUNDÁ | T12: =SUMIF(OFFSET($J12,1,0,ROW(T32)-ROW(T12)-1),"Serviço",OFFSET(T12,1,0,ROW(T32)-ROW(T12)-1)) -> 112278.1 | U12: =IF($N12=0,"DESCRIÇÃO","") ->  | V12: 0
A13: =CHOOSE(1+LOG(1+2*(J13="Meta")+4*(J13="Nível 2")+8*(J13="Nível 3")+16*(J13="Nível 4")+32*(J13="Serviço"),2),0,1,2,3,4,"S") -> 1 | B13: =IF(OR(A13="S",A13=0),0,IF(ISERROR(I13),H13,SMALL(H13:I13,1))) -> 5 | C13: =IF($A13=1,OFFSET(C13,-1,0)+1,OFFSET(C13,-1,0)) -> 1 | D13: =IF($A13=1,0,IF($A13=2,OFFSET(D13,-1,0)+1,OFFSET(D13,-1,0))) -> 0 | E13: =IF(AND($A13<=2,$A13<>0),0,IF($A13=3,OFFSET(E13,-1,0)+1,OFFSET(E13,-1,0))) -> 0 | F13: =IF(AND($A13<=3,$A13<>0),0,IF($A13=4,OFFSET(F13,-1,0)+1,OFFSET(F13,-1,0))) -> 0 | G13: =IF(AND($A13<=4,$A13<>0),0,IF($A13="S",OFFSET(G13,-1,0)+1,OFFSET(G13,-1,0))) -> 0 | H13: =IF(OR($A13="S",$A13=0),0,MATCH(0,OFFSET($B13,1,$A13,ROW($A$32)-ROW($A13)),0)) -> 19 | I13: =IF(OR($A13="S",$A13=0),0,MATCH(OFFSET($B13,0,$A13)+1,OFFSET($B13,1,$A13,ROW($A$32)-ROW($A13)),0)) -> 5 | J13: Meta | K13: =IF($A13=0,"-",CONCATENATE(C13&".",IF(AND($A$5>=2,$A13>=2),D13&".",""),IF(AND($A$5>=3,$A13>=3),E13&".",""),IF(AND($A$5>=4,$A13>=4),F13&".",""),IF($A13="S",G13&".",""))) -> 1. | N13: SERVIÇOS PRELIMINARES | P13: 0 | R13: BDI 1 | S13: =IF($A13="S",IF($Q$10="Preço Unitário (R$)",PO.CustoUnitario,ROUND(PO.CustoUnitario*(1+$Z13),15-13*$X$6)),0) -> 0 | T13: =IF($A13="S",VTOTAL1,IF($A13=0,0,ROUND(SomaAgrup,15-13*$X$7))) -> 5403.16 | U13: =IF($J13="","",IF($N13="","DESCRIÇÃO",IF(AND($J13="Serviço",$O13=""),"UNIDADE",IF($T13<=0,"SEM VALOR",IF(AND($Y13<>"",$Q13>$Y13),"ACIMA REF.",""))))) ->  | V13: =IF(OR($A13=0,$A13="S",$A13>CFF!$A$9),"",MAX(V$12:OFFSET(V13,-1,0))+1) -> 1 | W13: =IF(AND($J13="Serviço",$M13<>""),IF($L13="",$M13,CONCATENATE($L13,"-",$M13))) -> FALSE | X13: =IF(AND(Fonte<>"",Código<>""),MATCH(Fonte&" "&IF(Fonte="sinapi",SUBSTITUTE(SUBSTITUTE(Código,"/00","/"),"/0","/"),Código),INDIRECT("'[Referência "&_xlnm.Database&".xls]Banco'!$a:$a"),0),"X") -> X | Y13: =IF(Import.Desoneracao="sim",Referencia.Desonerado,Referencia.NaoDesonerado) -> 0 | Z13: =ROUND(IF(ISNUMBER(R13),R13,IF(LEFT(R13,3)="BDI",HLOOKUP(R13,DADOS!$T$37:$X$38,2,FALSE),0)),15-11*$X$5) -> 0.3
A14: S | B14: 0 | C14: 1 | D14: 0 | E14: 0 | F14: 0 | G14: 1 | H14: 0 | I14: 0 | J14: Serviço | K14: 1.0.1. | L14: SINAPI-I | M14: 4813 | N14: =IF($A14="S",Referencia.Descricao,"(digite a descrição aqui)") -> PLACA DE OBRA (PARA CONSTRUCAO CIVIL) EM CHAPA GALVANIZADA *N. 22*, ADESIVADA, DE *2,0 X 1,125* M | O14: =Referencia.Unidade -> M2 | P14: =2.4 -> 2.4 | Q14: =Y14 -> 200 | R14: BDI 1 | S14: 260 | T14: 624 | V14: =IF(OR($A14=0,$A14="S",$A14>CFF!$A$9),"",MAX(V$12:OFFSET(V14,-1,0))+1) ->  | W14: SINAPI-I-4813 | X14: 10589 | Y14: 200 | Z14: =ROUND(IF(ISNUMBER(R14),R14,IF(LEFT(R14,3)="BDI",HLOOKUP(R14,DADOS!$T$37:$X$38,2,FALSE),0)),15-11*$X$5) -> 0.3
A15: S | B15: 0 | C15: 1 | D15: 0 | E15: 0 | F15: 0 | G15: 2 | H15: 0 | I15: 0 | J15: Serviço | K15: 1.0.2. | L15: SINAPI | M15: 100575 | N15: REGULARIZAÇÃO DE SUPERFÍCIES COM MOTONIVELADORA. AF_11/2019 | O15: =Referencia.Unidade -> M2 | P15: =81*10 -> 810 | Q15: =Y15 -> 0.07 | R15: BDI 1 | S15: 0.09 | T15: 72.9 | V15: =IF(OR($A15=0,$A15="S",$A15>CFF!$A$9),"",MAX(V$12:OFFSET(V15,-1,0))+1) ->  | W15: SINAPI-100575 | X15: 5367 | Y15: 0.07 | Z15: =ROUND(IF(ISNUMBER(R15),R15,IF(LEFT(R15,3)="BDI",HLOOKUP(R15,DADOS!$T$37:$X$38,2,FALSE),0)),15-11*$X$5) -> 0.3
A16: S | B16: 0 | C16: 1 | D16: 0 | E16: 0 | F16: 0 | G16: 3 | H16: 0 | I16: 0 | J16: Serviço | K16: 1.0.3. | L16: SINAPI | M16: 97918 | N16: TRANSPORTE COM CAMINHÃO BASCULANTE DE 6 M³, EM VIA URBANA PAVIMENTADA, DMT ATÉ 30 KM (UNIDADE: TXKM). AF_07/2020 | O16: =Referencia.Unidade -> TXKM | P16: =810*0.4*1.7*2 -> 1101.6 | Q16: 1.21 | R16: BDI 1 | S16: 1.57 | T16: 1729.51 | V16: =IF(OR($A16=0,$A16="S",$A16>CFF!$A$9),"",MAX(V$12:OFFSET(V16,-1,0))+1) ->  | W16: SINAPI-97918 | X16: 5077 | Y16: 1.21 | Z16: =ROUND(IF(ISNUMBER(R16),R16,IF(LEFT(R16,3)="BDI",HLOOKUP(R16,DADOS!$T$37:$X$38,2,FALSE),0)),15-11*$X$5) -> 0.3
A17: S | B17: 0 | C17: 1 | D17: 0 | E17: 0 | F17: 0 | G17: 4 | H17: 0 | I17: 0 | J17: Serviço | K17: 1.0.4. | L17: SINAPI | M17: 100973 | N17: CARGA, MANOBRA E DESCARGA DE SOLOS E MATERIAIS GRANULARES EM CAMINHÃO BASCULANTE 6 M³ - CARGA COM PÁ CARREGADEIRA (CAÇAMBA DE 1,7 A 2,8 M³ / 128 HP) E DESCARGA LIVRE (UNIDADE: M3). AF_07/2020 | O17: =Referencia.Unidade -> M3 | P17: =810*0.4*1.25 -> 405 | Q17: 5.65 | R17: BDI 1 | S17: 7.35 | T17: 2976.75 | V17: =IF(OR($A17=0,$A17="S",$A17>CFF!$A$9),"",MAX(V$12:OFFSET(V17,-1,0))+1) ->  | W17: SINAPI-100973 | X17: 6325 | Y17: 5.65 | Z17: =ROUND(IF(ISNUMBER(R17),R17,IF(LEFT(R17,3)="BDI",HLOOKUP(R17,DADOS!$T$37:$X$38,2,FALSE),0)),15-11*$X$5) -> 0.3
A18: 1 | B18: 14 | C18: 2 | D18: 0 | E18: 0 | F18: 0 | G18: 0 | H18: 14 | J18: Meta | K18: 2. | N18: CALÇAMENTO | O18: =Referencia.Unidade ->  | P18: 0 | R18: BDI 1 | S18: 0 | T18: 106874.94 | V18: =IF(OR($A18=0,$A18="S",$A18>CFF!$A$9),"",MAX(V$12:OFFSET(V18,-1,0))+1) -> 2 | W18: FALSE | X18: X | Y18: 0 | Z18: =ROUND(IF(ISNUMBER(R18),R18,IF(LEFT(R18,3)="BDI",HLOOKUP(R18,DADOS!$T$37:$X$38,2,FALSE),0)),15-11*$X$5) -> 0.3
A19: 2 | B19: 4 | C19: 2 | D19: 1 | E19: 0 | F19: 0 | G19: 0 | H19: 13 | I19: 4 | J19: Nível 2 | K19: 2.1. | N19: MEIO FIO | O19: =Referencia.Unidade ->  | P19: 0 | R19: BDI 1 | S19: 0 | T19: 8593.19 | V19: =IF(OR($A19=0,$A19="S",$A19>CFF!$A$9),"",MAX(V$12:OFFSET(V19,-1,0))+1) -> 3 | W19: FALSE | X19: X | Y19: 0 | Z19: =ROUND(IF(ISNUMBER(R19),R19,IF(LEFT(R19,3)="BDI",HLOOKUP(R19,DADOS!$T$37:$X$38,2,FALSE),0)),15-11*$X$5) -> 0.3
A20: =CHOOSE(1+LOG(1+2*(J20="Meta")+4*(J20="Nível 2")+8*(J20="Nível 3")+16*(J20="Nível 4")+32*(J20="Serviço"),2),0,1,2,3,4,"S") -> S | B20: =IF(OR(A20="S",A20=0),0,IF(ISERROR(I20),H20,SMALL(H20:I20,1))) -> 0 | C20: =IF($A20=1,OFFSET(C20,-1,0)+1,OFFSET(C20,-1,0)) -> 2 | D20: =IF($A20=1,0,IF($A20=2,OFFSET(D20,-1,0)+1,OFFSET(D20,-1,0))) -> 1 | E20: =IF(AND($A20<=2,$A20<>0),0,IF($A20=3,OFFSET(E20,-1,0)+1,OFFSET(E20,-1,0))) -> 0 | F20: =IF(AND($A20<=3,$A20<>0),0,IF($A20=4,OFFSET(F20,-1,0)+1,OFFSET(F20,-1,0))) -> 0 | G20: =IF(AND($A20<=4,$A20<>0),0,IF($A20="S",OFFSET(G20,-1,0)+1,OFFSET(G20,-1,0))) -> 1 | H20: 0 | I20: 0 | J20: Serviço | K20: =IF($A20=0,"-",CONCATENATE(C20&".",IF(AND($A$5>=2,$A20>=2),D20&".",""),IF(AND($A$5>=3,$A20>=3),E20&".",""),IF(AND($A$5>=4,$A20>=4),F20&".",""),IF($A20="S",G20&".",""))) -> 2.1.1. | L20: SINAPI | M20: 94273 | N20: =IF($A20="S",Referencia.Descricao,"(digite a descrição aqui)") -> ASSENTAMENTO DE GUIA (MEIO-FIO) EM TRECHO RETO, CONFECCIONADA EM CONCRETO PRÉ-FABRICADO, DIMENSÕES 100X15X13X30 CM (COMPRIMENTO X BASE INFERIOR X BASE SUPERIOR X ALTURA), PARA VIAS URBANAS (USO VIÁRIO). AF_06/2016 | O20: =Referencia.Unidade -> M | P20: =81*2 -> 162 | Q20: =Y20 -> 37.33 | R20: BDI 1 | S20: =IF($A20="S",IF($Q$10="Preço Unitário (R$)",PO.CustoUnitario,ROUND(PO.CustoUnitario*(1+$Z20),15-13*$X$6)),0) -> 48.53 | T20: =IF($A20="S",VTOTAL1,IF($A20=0,0,ROUND(SomaAgrup,15-13*$X$7))) -> 7861.86 | U20: =IF($J20="","",IF($N20="","DESCRIÇÃO",IF(AND($J20="Serviço",$O20=""),"UNIDADE",IF($T20<=0,"SEM VALOR",IF(AND($Y20<>"",$Q20>$Y20),"ACIMA REF.",""))))) ->  | V20: =IF(OR($A20=0,$A20="S",$A20>CFF!$A$9),"",MAX(V$12:OFFSET(V20,-1,0))+1) ->  | W20: =IF(AND($J20="Serviço",$M20<>""),IF($L20="",$M20,CONCATENATE($L20,"-",$M20))) -> SINAPI-94273 | X20: =IF(AND(Fonte<>"",Código<>""),MATCH(Fonte&" "&IF(Fonte="sinapi",SUBSTITUTE(SUBSTITUTE(Código,"/00","/"),"/0","/"),Código),INDIRECT("'[Referência "&_xlnm.Database&".xls]Banco'!$a:$a"),0),"X") -> 1620 | Y20: =IF(Import.Desoneracao="sim",Referencia.Desonerado,Referencia.NaoDesonerado) -> 37.33 | Z20: =ROUND(IF(ISNUMBER(R20),R20,IF(LEFT(R20,3)="BDI",HLOOKUP(R20,DADOS!$T$37:$X$38,2,FALSE),0)),15-11*$X$5) -> 0.3
A21: =CHOOSE(1+LOG(1+2*(J21="Meta")+4*(J21="Nível 2")+8*(J21="Nível 3")+16*(J21="Nível 4")+32*(J21="Serviço"),2),0,1,2,3,4,"S") -> S | B21: =IF(OR(A21="S",A21=0),0,IF(ISERROR(I21),H21,SMALL(H21:I21,1))) -> 0 | C21: =IF($A21=1,OFFSET(C21,-1,0)+1,OFFSET(C21,-1,0)) -> 2 | D21: =IF($A21=1,0,IF($A21=2,OFFSET(D21,-1,0)+1,OFFSET(D21,-1,0))) -> 1 | E21: =IF(AND($A21<=2,$A21<>0),0,IF($A21=3,OFFSET(E21,-1,0)+1,OFFSET(E21,-1,0))) -> 0 | F21: =IF(AND($A21<=3,$A21<>0),0,IF($A21=4,OFFSET(F21,-1,0)+1,OFFSET(F21,-1,0))) -> 0 | G21: =IF(AND($A21<=4,$A21<>0),0,IF($A21="S",OFFSET(G21,-1,0)+1,OFFSET(G21,-1,0))) -> 2 | H21: 0 | I21: 0 | J21: Serviço | K21: =IF($A21=0,"-",CONCATENATE(C21&".",IF(AND($A$5>=2,$A21>=2),D21&".",""),IF(AND($A$5>=3,$A21>=3),E21&".",""),IF(AND($A$5>=4,$A21>=4),F21&".",""),IF($A21="S",G21&".",""))) -> 2.1.2. | L21: SINAPI | M21: 100947 | N21: =IF($A21="S",Referencia.Descricao,"(digite a descrição aqui)") -> TRANSPORTE COM CAMINHÃO CARROCERIA 9T, EM VIA URBANA PAVIMENTADA, DMT ATÉ 30KM (UNIDADE: TXKM). AF_07/2020 | O21: =Referencia.Unidade -> TXKM | P21: =162*0.12*0.3*2*30 -> 349.92 | Q21: =Y21 -> 1.27 | R21: BDI 1 | S21: =IF($A21="S",IF($Q$10="Preço Unitário (R$)",PO.CustoUnitario,ROUND(PO.CustoUnitario*(1+$Z21),15-13*$X$6)),0) -> 1.65 | T21: =IF($A21="S",VTOTAL1,IF($A21=0,0,ROUND(SomaAgrup,15-13*$X$7))) -> 577.37 | U21: =IF($J21="","",IF($N21="","DESCRIÇÃO",IF(AND($J21="Serviço",$O21=""),"UNIDADE",IF($T21<=0,"SEM VALOR",IF(AND($Y21<>"",$Q21>$Y21),"ACIMA REF.",""))))) ->  | V21: =IF(OR($A21=0,$A21="S",$A21>CFF!$A$9),"",MAX(V$12:OFFSET(V21,-1,0))+1) ->  | W21: =IF(AND($J21="Serviço",$M21<>""),IF($L21="",$M21,CONCATENATE($L21,"-",$M21))) -> SINAPI-100947 | X21: =IF(AND(Fonte<>"",Código<>""),MATCH(Fonte&" "&IF(Fonte="sinapi",SUBSTITUTE(SUBSTITUTE(Código,"/00","/"),"/0","/"),Código),INDIRECT("'[Referência "&_xlnm.Database&".xls]Banco'!$a:$a"),0),"X") -> 6307 | Y21: =IF(Import.Desoneracao="sim",Referencia.Desonerado,Referencia.NaoDesonerado) -> 1.27 | Z21: =ROUND(IF(ISNUMBER(R21),R21,IF(LEFT(R21,3)="BDI",HLOOKUP(R21,DADOS!$T$37:$X$38,2,FALSE),0)),15-11*$X$5) -> 0.3
A22: =CHOOSE(1+LOG(1+2*(J22="Meta")+4*(J22="Nível 2")+8*(J22="Nível 3")+16*(J22="Nível 4")+32*(J22="Serviço"),2),0,1,2,3,4,"S") -> S | B22: =IF(OR(A22="S",A22=0),0,IF(ISERROR(I22),H22,SMALL(H22:I22,1))) -> 0 | C22: =IF($A22=1,OFFSET(C22,-1,0)+1,OFFSET(C22,-1,0)) -> 2 | D22: =IF($A22=1,0,IF($A22=2,OFFSET(D22,-1,0)+1,OFFSET(D22,-1,0))) -> 1 | E22: =IF(AND($A22<=2,$A22<>0),0,IF($A22=3,OFFSET(E22,-1,0)+1,OFFSET(E22,-1,0))) -> 0 | F22: =IF(AND($A22<=3,$A22<>0),0,IF($A22=4,OFFSET(F22,-1,0)+1,OFFSET(F22,-1,0))) -> 0 | G22: =IF(AND($A22<=4,$A22<>0),0,IF($A22="S",OFFSET(G22,-1,0)+1,OFFSET(G22,-1,0))) -> 3 | H22: 0 | I22: 0 | J22: Serviço | K22: =IF($A22=0,"-",CONCATENATE(C22&".",IF(AND($A$5>=2,$A22>=2),D22&".",""),IF(AND($A$5>=3,$A22>=3),E22&".",""),IF(AND($A$5>=4,$A22>=4),F22&".",""),IF($A22="S",G22&".",""))) -> 2.1.3. | L22: SINAPI | M22: 100948 | N22: =IF($A22="S",Referencia.Descricao,"(digite a descrição aqui)") -> TRANSPORTE COM CAMINHÃO CARROCERIA 9T, EM VIA URBANA PAVIMENTADA, ADICIONAL PARA DMT EXCEDENTE A 30 KM (UNIDADE: TXKM). AF_07/2020 | O22: =Referencia.Unidade -> TXKM | P22: =162*0.12*0.3*2*20 -> 233.28 | Q22: =Y22 -> 0.51 | R22: BDI 1 | S22: =IF($A22="S",IF($Q$10="Preço Unitário (R$)",PO.CustoUnitario,ROUND(PO.CustoUnitario*(1+$Z22),15-13*$X$6)),0) -> 0.66 | T22: =IF($A22="S",VTOTAL1,IF($A22=0,0,ROUND(SomaAgrup,15-13*$X$7))) -> 153.96 | U22: =IF($J22="","",IF($N22="","DESCRIÇÃO",IF(AND($J22="Serviço",$O22=""),"UNIDADE",IF($T22<=0,"SEM VALOR",IF(AND($Y22<>"",$Q22>$Y22),"ACIMA REF.",""))))) ->  | V22: =IF(OR($A22=0,$A22="S",$A22>CFF!$A$9),"",MAX(V$12:OFFSET(V22,-1,0))+1) ->  | W22: =IF(AND($J22="Serviço",$M22<>""),IF($L22="",$M22,CONCATENATE($L22,"-",$M22))) -> SINAPI-100948 | X22: =IF(AND(Fonte<>"",Código<>""),MATCH(Fonte&" "&IF(Fonte="sinapi",SUBSTITUTE(SUBSTITUTE(Código,"/00","/"),"/0","/"),Código),INDIRECT("'[Referência "&_xlnm.Database&".xls]Banco'!$a:$a"),0),"X") -> 6308 | Y22: =IF(Import.Desoneracao="sim",Referencia.Desonerado,Referencia.NaoDesonerado) -> 0.51 | Z22: =ROUND(IF(ISNUMBER(R22),R22,IF(LEFT(R22,3)="BDI",HLOOKUP(R22,DADOS!$T$37:$X$38,2,FALSE),0)),15-11*$X$5) -> 0.3
A23: =CHOOSE(1+LOG(1+2*(J23="Meta")+4*(J23="Nível 2")+8*(J23="Nível 3")+16*(J23="Nível 4")+32*(J23="Serviço"),2),0,1,2,3,4,"S") -> 2 | B23: =IF(OR(A23="S",A23=0),0,IF(ISERROR(I23),H23,SMALL(H23:I23,1))) -> 5 | C23: =IF($A23=1,OFFSET(C23,-1,0)+1,OFFSET(C23,-1,0)) -> 2 | D23: =IF($A23=1,0,IF($A23=2,OFFSET(D23,-1,0)+1,OFFSET(D23,-1,0))) -> 2 | E23: =IF(AND($A23<=2,$A23<>0),0,IF($A23=3,OFFSET(E23,-1,0)+1,OFFSET(E23,-1,0))) -> 0 | F23: =IF(AND($A23<=3,$A23<>0),0,IF($A23=4,OFFSET(F23,-1,0)+1,OFFSET(F23,-1,0))) -> 0 | G23: =IF(AND($A23<=4,$A23<>0),0,IF($A23="S",OFFSET(G23,-1,0)+1,OFFSET(G23,-1,0))) -> 0 | H23: 9 | I23: 5 | J23: Nível 2 | K23: =IF($A23=0,"-",CONCATENATE(C23&".",IF(AND($A$5>=2,$A23>=2),D23&".",""),IF(AND($A$5>=3,$A23>=3),E23&".",""),IF(AND($A$5>=4,$A23>=4),F23&".",""),IF($A23="S",G23&".",""))) -> 2.2. | N23: PAVIMENTAÇÃO BLOCOS DE CONCRETO INTERTRAVADO | O23: =Referencia.Unidade ->  | R23: BDI 1 | S23: =IF($A23="S",IF($Q$10="Preço Unitário (R$)",PO.CustoUnitario,ROUND(PO.CustoUnitario*(1+$Z23),15-13*$X$6)),0) -> 0 | T23: =IF($A23="S",VTOTAL1,IF($A23=0,0,ROUND(SomaAgrup,15-13*$X$7))) -> 86014.48 | U23: =IF($J23="","",IF($N23="","DESCRIÇÃO",IF(AND($J23="Serviço",$O23=""),"UNIDADE",IF($T23<=0,"SEM VALOR",IF(AND($Y23<>"",$Q23>$Y23),"ACIMA REF.",""))))) ->  | V23: =IF(OR($A23=0,$A23="S",$A23>CFF!$A$9),"",MAX(V$12:OFFSET(V23,-1,0))+1) -> 4 | W23: =IF(AND($J23="Serviço",$M23<>""),IF($L23="",$M23,CONCATENATE($L23,"-",$M23))) -> FALSE | X23: =IF(AND(Fonte<>"",Código<>""),MATCH(Fonte&" "&IF(Fonte="sinapi",SUBSTITUTE(SUBSTITUTE(Código,"/00","/"),"/0","/"),Código),INDIRECT("'[Referência "&_xlnm.Database&".xls]Banco'!$a:$a"),0),"X") -> X | Y23: =IF(Import.Desoneracao="sim",Referencia.Desonerado,Referencia.NaoDesonerado) -> 0 | Z23: =ROUND(IF(ISNUMBER(R23),R23,IF(LEFT(R23,3)="BDI",HLOOKUP(R23,DADOS!$T$37:$X$38,2,FALSE),0)),15-11*$X$5) -> 0.3
A24: S | B24: 0 | C24: 2 | D24: 2 | E24: 0 | F24: 0 | G24: 1 | H24: 0 | I24: 0 | J24: Serviço | K24: 2.2.1. | L24: SINAPI | M24: 92407 | N24: EXECUÇÃO DE VIA EM PISO INTERTRAVADO, COM BLOCO 16 FACES DE 22 X 11 CM, ESPESSURA 10 CM. AF_12/2015 | O24: =Referencia.Unidade -> M2 | P24: =81*10 -> 810 | Q24: =Y24 -> 63.48 | R24: BDI 1 | S24: 82.52 | T24: 66841.2 | V24: =IF(OR($A24=0,$A24="S",$A24>CFF!$A$9),"",MAX(V$12:OFFSET(V24,-1,0))+1) ->  | W24: SINAPI-92407 | X24: 5386 | Y24: 63.48 | Z24: =ROUND(IF(ISNUMBER(R24),R24,IF(LEFT(R24,3)="BDI",HLOOKUP(R24,DADOS!$T$37:$X$38,2,FALSE),0)),15-11*$X$5) -> 0.3
A25: S | B25: 0 | C25: 2 | D25: 2 | E25: 0 | F25: 0 | G25: 2 | H25: 0 | I25: 0 | J25: Serviço | K25: 2.2.2. | L25: SINAPI | M25: 100946 | N25: TRANSPORTE COM CAMINHÃO CARROCERIA 9T, EM VIA URBANA EM REVESTIMENTO PRIMÁRIO (UNIDADE: TXKM). AF_07/2020 | O25: =Referencia.Unidade -> TXKM | P25: =81*10*0.1*2*50 -> 8100 | Q25: =Y25 -> 1.38 | R25: BDI 1 | S25: 1.79 | T25: 14499 | V25: =IF(OR($A25=0,$A25="S",$A25>CFF!$A$9),"",MAX(V$12:OFFSET(V25,-1,0))+1) ->  | W25: SINAPI-100946 | X25: 6306 | Y25: 1.38 | Z25: =ROUND(IF(ISNUMBER(R25),R25,IF(LEFT(R25,3)="BDI",HLOOKUP(R25,DADOS!$T$37:$X$38,2,FALSE),0)),15-11*$X$5) -> 0.3
A26: S | B26: 0 | C26: 2 | D26: 2 | E26: 0 | F26: 0 | G26: 3 | H26: 0 | I26: 0 | J26: Serviço | K26: 2.2.3. | L26: SINAPI | M26: 100947 | N26: TRANSPORTE COM CAMINHÃO CARROCERIA 9T, EM VIA URBANA PAVIMENTADA, DMT ATÉ 30KM (UNIDADE: TXKM). AF_07/2020 | O26: =Referencia.Unidade -> TXKM | P26: =810*0.067*1.45*30 -> 2360.745 | Q26: 1.27 | R26: BDI 1 | S26: 1.65 | T26: 3895.24 | V26: =IF(OR($A26=0,$A26="S",$A26>CFF!$A$9),"",MAX(V$12:OFFSET(V26,-1,0))+1) ->  | W26: SINAPI-100947 | X26: 6307 | Y26: 1.27 | Z26: =ROUND(IF(ISNUMBER(R26),R26,IF(LEFT(R26,3)="BDI",HLOOKUP(R26,DADOS!$T$37:$X$38,2,FALSE),0)),15-11*$X$5) -> 0.3
A27: =CHOOSE(1+LOG(1+2*(J27="Meta")+4*(J27="Nível 2")+8*(J27="Nível 3")+16*(J27="Nível 4")+32*(J27="Serviço"),2),0,1,2,3,4,"S") -> S | B27: =IF(OR(A27="S",A27=0),0,IF(ISERROR(I27),H27,SMALL(H27:I27,1))) -> 0 | C27: =IF($A27=1,OFFSET(C27,-1,0)+1,OFFSET(C27,-1,0)) -> 2 | D27: =IF($A27=1,0,IF($A27=2,OFFSET(D27,-1,0)+1,OFFSET(D27,-1,0))) -> 2 | E27: =IF(AND($A27<=2,$A27<>0),0,IF($A27=3,OFFSET(E27,-1,0)+1,OFFSET(E27,-1,0))) -> 0 | F27: =IF(AND($A27<=3,$A27<>0),0,IF($A27=4,OFFSET(F27,-1,0)+1,OFFSET(F27,-1,0))) -> 0 | G27: =IF(AND($A27<=4,$A27<>0),0,IF($A27="S",OFFSET(G27,-1,0)+1,OFFSET(G27,-1,0))) -> 4 | H27: 0 | I27: 0 | J27: Serviço | K27: =IF($A27=0,"-",CONCATENATE(C27&".",IF(AND($A$5>=2,$A27>=2),D27&".",""),IF(AND($A$5>=3,$A27>=3),E27&".",""),IF(AND($A$5>=4,$A27>=4),F27&".",""),IF($A27="S",G27&".",""))) -> 2.2.4. | L27: SINAPI | M27: 100948 | N27: =IF($A27="S",Referencia.Descricao,"(digite a descrição aqui)") -> TRANSPORTE COM CAMINHÃO CARROCERIA 9T, EM VIA URBANA PAVIMENTADA, ADICIONAL PARA DMT EXCEDENTE A 30 KM (UNIDADE: TXKM). AF_07/2020 | O27: =Referencia.Unidade -> TXKM | P27: =810*0.067*1.45*15 -> 1180.3725 | Q27: 0.51 | R27: BDI 1 | S27: =IF($A27="S",IF($Q$10="Preço Unitário (R$)",PO.CustoUnitario,ROUND(PO.CustoUnitario*(1+$Z27),15-13*$X$6)),0) -> 0.66 | T27: =IF($A27="S",VTOTAL1,IF($A27=0,0,ROUND(SomaAgrup,15-13*$X$7))) -> 779.04 | U27: =IF($J27="","",IF($N27="","DESCRIÇÃO",IF(AND($J27="Serviço",$O27=""),"UNIDADE",IF($T27<=0,"SEM VALOR",IF(AND($Y27<>"",$Q27>$Y27),"ACIMA REF.",""))))) ->  | V27: =IF(OR($A27=0,$A27="S",$A27>CFF!$A$9),"",MAX(V$12:OFFSET(V27,-1,0))+1) ->  | W27: =IF(AND($J27="Serviço",$M27<>""),IF($L27="",$M27,CONCATENATE($L27,"-",$M27))) -> SINAPI-100948 | X27: =IF(AND(Fonte<>"",Código<>""),MATCH(Fonte&" "&IF(Fonte="sinapi",SUBSTITUTE(SUBSTITUTE(Código,"/00","/"),"/0","/"),Código),INDIRECT("'[Referência "&_xlnm.Database&".xls]Banco'!$a:$a"),0),"X") -> 6308 | Y27: =IF(Import.Desoneracao="sim",Referencia.Desonerado,Referencia.NaoDesonerado) -> 0.51 | Z27: =ROUND(IF(ISNUMBER(R27),R27,IF(LEFT(R27,3)="BDI",HLOOKUP(R27,DADOS!$T$37:$X$38,2,FALSE),0)),15-11*$X$5) -> 0.3
A28: =CHOOSE(1+LOG(1+2*(J28="Meta")+4*(J28="Nível 2")+8*(J28="Nível 3")+16*(J28="Nível 4")+32*(J28="Serviço"),2),0,1,2,3,4,"S") -> 2 | B28: =IF(OR(A28="S",A28=0),0,IF(ISERROR(I28),H28,SMALL(H28:I28,1))) -> 4 | C28: =IF($A28=1,OFFSET(C28,-1,0)+1,OFFSET(C28,-1,0)) -> 2 | D28: =IF($A28=1,0,IF($A28=2,OFFSET(D28,-1,0)+1,OFFSET(D28,-1,0))) -> 3 | E28: =IF(AND($A28<=2,$A28<>0),0,IF($A28=3,OFFSET(E28,-1,0)+1,OFFSET(E28,-1,0))) -> 0 | F28: =IF(AND($A28<=3,$A28<>0),0,IF($A28=4,OFFSET(F28,-1,0)+1,OFFSET(F28,-1,0))) -> 0 | G28: =IF(AND($A28<=4,$A28<>0),0,IF($A28="S",OFFSET(G28,-1,0)+1,OFFSET(G28,-1,0))) -> 0 | H28: 4 | J28: Nível 2 | K28: =IF($A28=0,"-",CONCATENATE(C28&".",IF(AND($A$5>=2,$A28>=2),D28&".",""),IF(AND($A$5>=3,$A28>=3),E28&".",""),IF(AND($A$5>=4,$A28>=4),F28&".",""),IF($A28="S",G28&".",""))) -> 2.3. | N28: DRENAGEM | O28: =Referencia.Unidade ->  | R28: BDI 1 | S28: =IF($A28="S",IF($Q$10="Preço Unitário (R$)",PO.CustoUnitario,ROUND(PO.CustoUnitario*(1+$Z28),15-13*$X$6)),0) -> 0 | T28: =IF($A28="S",VTOTAL1,IF($A28=0,0,ROUND(SomaAgrup,15-13*$X$7))) -> 12267.27 | U28: =IF($J28="","",IF($N28="","DESCRIÇÃO",IF(AND($J28="Serviço",$O28=""),"UNIDADE",IF($T28<=0,"SEM VALOR",IF(AND($Y28<>"",$Q28>$Y28),"ACIMA REF.",""))))) ->  | V28: =IF(OR($A28=0,$A28="S",$A28>CFF!$A$9),"",MAX(V$12:OFFSET(V28,-1,0))+1) -> 5 | W28: =IF(AND($J28="Serviço",$M28<>""),IF($L28="",$M28,CONCATENATE($L28,"-",$M28))) -> FALSE | X28: =IF(AND(Fonte<>"",Código<>""),MATCH(Fonte&" "&IF(Fonte="sinapi",SUBSTITUTE(SUBSTITUTE(Código,"/00","/"),"/0","/"),Código),INDIRECT("'[Referência "&_xlnm.Database&".xls]Banco'!$a:$a"),0),"X") -> X | Y28: =IF(Import.Desoneracao="sim",Referencia.Desonerado,Referencia.NaoDesonerado) -> 0 | Z28: =ROUND(IF(ISNUMBER(R28),R28,IF(LEFT(R28,3)="BDI",HLOOKUP(R28,DADOS!$T$37:$X$38,2,FALSE),0)),15-11*$X$5) -> 0.3
A29: S | B29: 0 | C29: 2 | D29: 3 | E29: 0 | F29: 0 | G29: 1 | H29: 0 | I29: 0 | J29: Serviço | K29: 2.3.1. | L29: SINAPI | M29: 92210 | N29: =IF($A29="S",Referencia.Descricao,"(digite a descrição aqui)") -> TUBO DE CONCRETO PARA REDES COLETORAS DE ÁGUAS PLUVIAIS, DIÂMETRO DE 400 MM, JUNTA RÍGIDA, INSTALADO EM LOCAL COM BAIXO NÍVEL DE INTERFERÊNCIAS - FORNECIMENTO E ASSENTAMENTO. AF_12/2015 | O29: =Referencia.Unidade -> M | P29: 40 | Q29: =Y29 -> 108.63 | R29: BDI 1 | S29: =IF($A29="S",IF($Q$10="Preço Unitário (R$)",PO.CustoUnitario,ROUND(PO.CustoUnitario*(1+$Z29),15-13*$X$6)),0) -> 141.22 | T29: =IF($A29="S",VTOTAL1,IF($A29=0,0,ROUND(SomaAgrup,15-13*$X$7))) -> 5648.8 | V29: =IF(OR($A29=0,$A29="S",$A29>CFF!$A$9),"",MAX(V$12:OFFSET(V29,-1,0))+1) ->  | W29: SINAPI-92210 | X29: =IF(AND(Fonte<>"",Código<>""),MATCH(Fonte&" "&IF(Fonte="sinapi",SUBSTITUTE(SUBSTITUTE(Código,"/00","/"),"/0","/"),Código),INDIRECT("'[Referência "&_xlnm.Database&".xls]Banco'!$a:$a"),0),"X") -> 183 | Y29: =IF(Import.Desoneracao="sim",Referencia.Desonerado,Referencia.NaoDesonerado) -> 108.63 | Z29: =ROUND(IF(ISNUMBER(R29),R29,IF(LEFT(R29,3)="BDI",HLOOKUP(R29,DADOS!$T$37:$X$38,2,FALSE),0)),15-11*$X$5) -> 0.3
A30: S | B30: 0 | C30: 2 | D30: 3 | E30: 0 | F30: 0 | G30: 2 | H30: 0 | I30: 0 | J30: Serviço | K30: 2.3.2. | L30: SINAPI | M30: 100947 | N30: =IF($A30="S",Referencia.Descricao,"(digite a descrição aqui)") -> TRANSPORTE COM CAMINHÃO CARROCERIA 9T, EM VIA URBANA PAVIMENTADA, DMT ATÉ 30KM (UNIDADE: TXKM). AF_07/2020 | O30: =Referencia.Unidade -> TXKM | P30: =2*3.1416*0.2*1*0.042*2000*30 -> 3166.7328 | Q30: =Y30 -> 1.27 | R30: BDI 1 | S30: =IF($A30="S",IF($Q$10="Preço Unitário (R$)",PO.CustoUnitario,ROUND(PO.CustoUnitario*(1+$Z30),15-13*$X$6)),0) -> 1.65 | T30: =IF($A30="S",VTOTAL1,IF($A30=0,0,ROUND(SomaAgrup,15-13*$X$7))) -> 5225.1 | V30: =IF(OR($A30=0,$A30="S",$A30>CFF!$A$9),"",MAX(V$12:OFFSET(V30,-1,0))+1) ->  | W30: SINAPI-100947 | X30: =IF(AND(Fonte<>"",Código<>""),MATCH(Fonte&" "&IF(Fonte="sinapi",SUBSTITUTE(SUBSTITUTE(Código,"/00","/"),"/0","/"),Código),INDIRECT("'[Referência "&_xlnm.Database&".xls]Banco'!$a:$a"),0),"X") -> 6307 | Y30: =IF(Import.Desoneracao="sim",Referencia.Desonerado,Referencia.NaoDesonerado) -> 1.27 | Z30: =ROUND(IF(ISNUMBER(R30),R30,IF(LEFT(R30,3)="BDI",HLOOKUP(R30,DADOS!$T$37:$X$38,2,FALSE),0)),15-11*$X$5) -> 0.3
A31: S | B31: 0 | C31: 2 | D31: 3 | E31: 0 | F31: 0 | G31: 3 | H31: 0 | I31: 0 | J31: Serviço | K31: 2.3.3. | L31: SINAPI | M31: 100948 | N31: =IF($A31="S",Referencia.Descricao,"(digite a descrição aqui)") -> TRANSPORTE COM CAMINHÃO CARROCERIA 9T, EM VIA URBANA PAVIMENTADA, ADICIONAL PARA DMT EXCEDENTE A 30 KM (UNIDADE: TXKM). AF_07/2020 | O31: =Referencia.Unidade -> TXKM | P31: =2*3.1416*0.2*1*0.042*2000*20 -> 2111.1552 | Q31: 0.51 | R31: BDI 1 | S31: =IF($A31="S",IF($Q$10="Preço Unitário (R$)",PO.CustoUnitario,ROUND(PO.CustoUnitario*(1+$Z31),15-13*$X$6)),0) -> 0.66 | T31: =IF($A31="S",VTOTAL1,IF($A31=0,0,ROUND(SomaAgrup,15-13*$X$7))) -> 1393.37 | V31: =IF(OR($A31=0,$A31="S",$A31>CFF!$A$9),"",MAX(V$12:OFFSET(V31,-1,0))+1) ->  | W31: SINAPI-100948 | X31: =IF(AND(Fonte<>"",Código<>""),MATCH(Fonte&" "&IF(Fonte="sinapi",SUBSTITUTE(SUBSTITUTE(Código,"/00","/"),"/0","/"),Código),INDIRECT("'[Referência "&_xlnm.Database&".xls]Banco'!$a:$a"),0),"X") -> 6308 | Y31: =IF(Import.Desoneracao="sim",Referencia.Desonerado,Referencia.NaoDesonerado) -> 0.51 | Z31: =ROUND(IF(ISNUMBER(R31),R31,IF(LEFT(R31,3)="BDI",HLOOKUP(R31,DADOS!$T$37:$X$38,2,FALSE),0)),15-11*$X$5) -> 0.3
A32: -1 | C32: 0 | D32: 0 | E32: 0 | F32: 0 | G32: 0
K33: Encargos sociais: | M33: Para elaboração deste orçamento, foram utilizados os encargos sociais do SINAPI para a Unidade da Federação indicada.
K35: Observações:
K40: =IF(AND($X$3=FALSE,$X$4=FALSE,$X$5=FALSE,$X$6=FALSE,$X$7=FALSE),"Não foi considerado arredondamento nos valores da planilha.",CONCATENATE("Foi considerado arredondamento de duas casas decimais para ",IF($X$3=TRUE,"Quantidade; ",""),IF($X$4=TRUE,"Custo Unitário; ",""),IF($X$5=TRUE,"BDI; ",""),IF($X$6=TRUE,"Preço Unitário; ",""),IF($X$7=TRUE,"Preço Total.",""))) -> Foi considerado arredondamento de duas casas decimais para Quantidade; Custo Unitário; BDI; Preço Unitário; Preço Total.
K43: =Import.Município -> SÃO FRANCISCO DE ASSIS/RS
K44: Local
K46: =TODAY() -> 2021-06-14
K47: Data

Sheet PLQ (hidden)
E1: PLQ - | F1: PLANILHA DE LEVANTAMENTO DE QUANTIDADES
E7: =OFFSET(PO!$P$12,ROW($E7)-ROW(E$12),0) -> 0
E9: - | F9: Única
A10: Nível | B10: Item | C10: Descrição | D10: Unid. | E10: Quantidade | F10: =IF(OFFSET(F10,0,-1)="Quantidade",1,OFFSET(F10,0,-1)+1) -> 1 | G10: 2 | H10: 3 | I10: 4 | J10: 5 | K10: 6 | L10: 7 | M10: 8 | N10: 9 | O10: 10 | U10: =IF(OFFSET(U10,0,-1)="Quantidade",1,OFFSET(U10,0,-1)+1) -> 1
A11: =OFFSET(PO!J$12,ROW(A11)-ROW($A$12),0) -> Serviço | B11: =IF($A11=0,"",OFFSET(PO!K$12,ROW(B11)-ROW(B$12),0)) ->  | C11: =IF(OFFSET(PO!N$12,ROW(C11)-ROW(C$12),0)=0,"",OFFSET(PO!N$12,ROW(C11)-ROW(C$12),0)) ->  | D11: =IF(OFFSET(PO!O$12,ROW(D11)-ROW(D$12),0)=0,"",OFFSET(PO!O$12,ROW(D11)-ROW(D$12),0)) ->  | E11: =IF($A11<>"Serviço",0,ROUND(SUMIF($F$9:$P$9,"<>",$F11:$P11),15-13*PO!$X$3)) -> 0 | F11: =OFFSET(PO!$P$12,ROW($E11)-ROW(F$12),0) -> 0
A12: =PO!J12 -> LOTE | C12: =PO!N12 -> RUA JOAO MANOEL-TRECHO EXPEDICIONÁRIO PONTE INHACUNDÁ
A13: =OFFSET(PO!J$12,ROW(A13)-ROW($A$12),0) -> Meta | B13: =IF($A13=0,"",OFFSET(PO!K$12,ROW(B13)-ROW(B$12),0)) -> 1. | C13: =IF(OFFSET(PO!N$12,ROW(C13)-ROW(C$12),0)=0,"",OFFSET(PO!N$12,ROW(C13)-ROW(C$12),0)) -> SERVIÇOS PRELIMINARES | D13: =IF(OFFSET(PO!O$12,ROW(D13)-ROW(D$12),0)=0,"",OFFSET(PO!O$12,ROW(D13)-ROW(D$12),0)) ->  | E13: =IF($A13<>"Serviço",0,ROUND(SUMIF($F$9:$P$9,"<>",$F13:$P13),15-13*PO!$X$3)) -> 0 | F13: =OFFSET(PO!$P$12,ROW($E13)-ROW(F$12),0) -> 0
A14: =OFFSET(PO!J$12,ROW(A14)-ROW($A$12),0) -> Serviço | B14: =IF($A14=0,"",OFFSET(PO!K$12,ROW(B14)-ROW(B$12),0)) -> 1.0.1. | C14: =IF(OFFSET(PO!N$12,ROW(C14)-ROW(C$12),0)=0,"",OFFSET(PO!N$12,ROW(C14)-ROW(C$12),0)) -> PLACA DE OBRA (PARA CONSTRUCAO CIVIL) EM CHAPA GALVANIZADA *N. 22*, ADESIVADA, DE *2,0 X 1,125* M | D14: =IF(OFFSET(PO!O$12,ROW(D14)-ROW(D$12),0)=0,"",OFFSET(PO!O$12,ROW(D14)-ROW(D$12),0)) -> M2 | E14: =IF($A14<>"Serviço",0,ROUND(SUMIF($F$9:$P$9,"<>",$F14:$P14),15-13*PO!$X$3)) -> 2.4 | F14: =OFFSET(PO!$P$12,ROW($E14)-ROW(F$12),0) -> 2.4
A15: =OFFSET(PO!J$12,ROW(A15)-ROW($A$12),0) -> Serviço | B15: =IF($A15=0,"",OFFSET(PO!K$12,ROW(B15)-ROW(B$12),0)) -> 1.0.2. | C15: =IF(OFFSET(PO!N$12,ROW(C15)-ROW(C$12),0)=0,"",OFFSET(PO!N$12,ROW(C15)-ROW(C$12),0)) -> REGULARIZAÇÃO DE SUPERFÍCIES COM MOTONIVELADORA. AF_11/2019 | D15: =IF(OFFSET(PO!O$12,ROW(D15)-ROW(D$12),0)=0,"",OFFSET(PO!O$12,ROW(D15)-ROW(D$12),0)) -> M2 | E15: =IF($A15<>"Serviço",0,ROUND(SUMIF($F$9:$P$9,"<>",$F15:$P15),15-13*PO!$X$3)) -> 810 | F15: =OFFSET(PO!$P$12,ROW($E15)-ROW(F$12),0) -> 810
A16: =OFFSET(PO!J$12,ROW(A16)-ROW($A$12),0) -> Serviço | B16: =IF($A16=0,"",OFFSET(PO!K$12,ROW(B16)-ROW(B$12),0)) -> 1.0.3. | C16: =IF(OFFSET(PO!N$12,ROW(C16)-ROW(C$12),0)=0,"",OFFSET(PO!N$12,ROW(C16)-ROW(C$12),0)) -> TRANSPORTE COM CAMINHÃO BASCULANTE DE 6 M³, EM VIA URBANA PAVIMENTADA, DMT ATÉ 30 KM (UNIDADE: TXKM). AF_07/2020 | D16: =IF(OFFSET(PO!O$12,ROW(D16)-ROW(D$12),0)=0,"",OFFSET(PO!O$12,ROW(D16)-ROW(D$12),0)) -> TXKM | E16: =IF($A16<>"Serviço",0,ROUND(SUMIF($F$9:$P$9,"<>",$F16:$P16),15-13*PO!$X$3)) -> 1101.6 | F16: =OFFSET(PO!$P$12,ROW($E16)-ROW(F$12),0) -> 1101.6
A17: =OFFSET(PO!J$12,ROW(A17)-ROW($A$12),0) -> Serviço | B17: =IF($A17=0,"",OFFSET(PO!K$12,ROW(B17)-ROW(B$12),0)) -> 1.0.4. | C17: =IF(OFFSET(PO!N$12,ROW(C17)-ROW(C$12),0)=0,"",OFFSET(PO!N$12,ROW(C17)-ROW(C$12),0)) -> CARGA, MANOBRA E DESCARGA DE SOLOS E MATERIAIS GRANULARES EM CAMINHÃO BASCULANTE 6 M³ - CARGA COM PÁ CARREGADEIRA (CAÇAMBA DE 1,7 A 2,8 M³ / 128 HP) E DESCARGA LIVRE (UNIDADE: M3). AF_07/2020 | D17: =IF(OFFSET(PO!O$12,ROW(D17)-ROW(D$12),0)=0,"",OFFSET(PO!O$12,ROW(D17)-ROW(D$12),0)) -> M3 | E17: =IF($A17<>"Serviço",0,ROUND(SUMIF($F$9:$P$9,"<>",$F17:$P17),15-13*PO!$X$3)) -> 405 | F17: =OFFSET(PO!$P$12,ROW($E17)-ROW(F$12),0) -> 405
A18: =OFFSET(PO!J$12,ROW(A18)-ROW($A$12),0) -> Meta | B18: =IF($A18=0,"",OFFSET(PO!K$12,ROW(B18)-ROW(B$12),0)) -> 2. | C18: =IF(OFFSET(PO!N$12,ROW(C18)-ROW(C$12),0)=0,"",OFFSET(PO!N$12,ROW(C18)-ROW(C$12),0)) -> CALÇAMENTO | D18: =IF(OFFSET(PO!O$12,ROW(D18)-ROW(D$12),0)=0,"",OFFSET(PO!O$12,ROW(D18)-ROW(D$12),0)) ->  | E18: =IF($A18<>"Serviço",0,ROUND(SUMIF($F$9:$P$9,"<>",$F18:$P18),15-13*PO!$X$3)) -> 0 | F18: =OFFSET(PO!$P$12,ROW($E18)-ROW(F$12),0) -> 0
A19: =OFFSET(PO!J$12,ROW(A19)-ROW($A$12),0) -> Nível 2 | B19: =IF($A19=0,"",OFFSET(PO!K$12,ROW(B19)-ROW(B$12),0)) -> 2.1. | C19: =IF(OFFSET(PO!N$12,ROW(C19)-ROW(C$12),0)=0,"",OFFSET(PO!N$12,ROW(C19)-ROW(C$12),0)) -> MEIO FIO | D19: =IF(OFFSET(PO!O$12,ROW(D19)-ROW(D$12),0)=0,"",OFFSET(PO!O$12,ROW(D19)-ROW(D$12),0)) ->  | E19: =IF($A19<>"Serviço",0,ROUND(SUMIF($F$9:$P$9,"<>",$F19:$P19),15-13*PO!$X$3)) -> 0 | F19: =OFFSET(PO!$P$12,ROW($E19)-ROW(F$12),0) -> 0
A20: =OFFSET(PO!J$12,ROW(A20)-ROW($A$12),0) -> Serviço | B20: =IF($A20=0,"",OFFSET(PO!K$12,ROW(B20)-ROW(B$12),0)) -> 2.1.1. | C20: =IF(OFFSET(PO!N$12,ROW(C20)-ROW(C$12),0)=0,"",OFFSET(PO!N$12,ROW(C20)-ROW(C$12),0)) -> ASSENTAMENTO DE GUIA (MEIO-FIO) EM TRECHO RETO, CONFECCIONADA EM CONCRETO PRÉ-FABRICADO, DIMENSÕES 100X15X13X30 CM (COMPRIMENTO X BASE INFERIOR X BASE SUPERIOR X ALTURA), PARA VIAS URBANAS (USO VIÁRIO). AF_06/2016 | D20: =IF(OFFSET(PO!O$12,ROW(D20)-ROW(D$12),0)=0,"",OFFSET(PO!O$12,ROW(D20)-ROW(D$12),0)) -> M | E20: =IF($A20<>"Serviço",0,ROUND(SUMIF($F$9:$P$9,"<>",$F20:$P20),15-13*PO!$X$3)) -> 162 | F20: =OFFSET(PO!$P$12,ROW($E20)-ROW(F$12),0) -> 162
A21: =OFFSET(PO!J$12,ROW(A21)-ROW($A$12),0) -> Serviço | B21: =IF($A21=0,"",OFFSET(PO!K$12,ROW(B21)-ROW(B$12),0)) -> 2.1.2. | C21: =IF(OFFSET(PO!N$12,ROW(C21)-ROW(C$12),0)=0,"",OFFSET(PO!N$12,ROW(C21)-ROW(C$12),0)) -> TRANSPORTE COM CAMINHÃO CARROCERIA 9T, EM VIA URBANA PAVIMENTADA, DMT ATÉ 30KM (UNIDADE: TXKM). AF_07/2020 | D21: =IF(OFFSET(PO!O$12,ROW(D21)-ROW(D$12),0)=0,"",OFFSET(PO!O$12,ROW(D21)-ROW(D$12),0)) -> TXKM | E21: =IF($A21<>"Serviço",0,ROUND(SUMIF($F$9:$P$9,"<>",$F21:$P21),15-13*PO!$X$3)) -> 349.92 | F21: =OFFSET(PO!$P$12,ROW($E21)-ROW(F$12),0) -> 349.92
A22: =OFFSET(PO!J$12,ROW(A22)-ROW($A$12),0) -> Serviço | B22: =IF($A22=0,"",OFFSET(PO!K$12,ROW(B22)-ROW(B$12),0)) -> 2.1.3. | C22: =IF(OFFSET(PO!N$12,ROW(C22)-ROW(C$12),0)=0,"",OFFSET(PO!N$12,ROW(C22)-ROW(C$12),0)) -> TRANSPORTE COM CAMINHÃO CARROCERIA 9T, EM VIA URBANA PAVIMENTADA, ADICIONAL PARA DMT EXCEDENTE A 30 KM (UNIDADE: TXKM). AF_07/2020 | D22: =IF(OFFSET(PO!O$12,ROW(D22)-ROW(D$12),0)=0,"",OFFSET(PO!O$12,ROW(D22)-ROW(D$12),0)) -> TXKM | E22: =IF($A22<>"Serviço",0,ROUND(SUMIF($F$9:$P$9,"<>",$F22:$P22),15-13*PO!$X$3)) -> 233.28 | F22: =OFFSET(PO!$P$12,ROW($E22)-ROW(F$12),0) -> 233.28
A23: =OFFSET(PO!J$12,ROW(A23)-ROW($A$12),0) -> Nível 2 | B23: =IF($A23=0,"",OFFSET(PO!K$12,ROW(B23)-ROW(B$12),0)) -> 2.2. | C23: =IF(OFFSET(PO!N$12,ROW(C23)-ROW(C$12),0)=0,"",OFFSET(PO!N$12,ROW(C23)-ROW(C$12),0)) -> PAVIMENTAÇÃO BLOCOS DE CONCRETO INTERTRAVADO | D23: =IF(OFFSET(PO!O$12,ROW(D23)-ROW(D$12),0)=0,"",OFFSET(PO!O$12,ROW(D23)-ROW(D$12),0)) ->  | E23: =IF($A23<>"Serviço",0,ROUND(SUMIF($F$9:$P$9,"<>",$F23:$P23),15-13*PO!$X$3)) -> 0 | F23: =OFFSET(PO!$P$12,ROW($E23)-ROW(F$12),0) -> 0
A24: =OFFSET(PO!J$12,ROW(A24)-ROW($A$12),0) -> Serviço | B24: =IF($A24=0,"",OFFSET(PO!K$12,ROW(B24)-ROW(B$12),0)) -> 2.2.1. | C24: =IF(OFFSET(PO!N$12,ROW(C24)-ROW(C$12),0)=0,"",OFFSET(PO!N$12,ROW(C24)-ROW(C$12),0)) -> EXECUÇÃO DE VIA EM PISO INTERTRAVADO, COM BLOCO 16 FACES DE 22 X 11 CM, ESPESSURA 10 CM. AF_12/2015 | D24: =IF(OFFSET(PO!O$12,ROW(D24)-ROW(D$12),0)=0,"",OFFSET(PO!O$12,ROW(D24)-ROW(D$12),0)) -> M2 | E24: =IF($A24<>"Serviço",0,ROUND(SUMIF($F$9:$P$9,"<>",$F24:$P24),15-13*PO!$X$3)) -> 810 | F24: =OFFSET(PO!$P$12,ROW($E24)-ROW(F$12),0) -> 810
A25: =OFFSET(PO!J$12,ROW(A25)-ROW($A$12),0) -> Serviço | B25: =IF($A25=0,"",OFFSET(PO!K$12,ROW(B25)-ROW(B$12),0)) -> 2.2.2. | C25: =IF(OFFSET(PO!N$12,ROW(C25)-ROW(C$12),0)=0,"",OFFSET(PO!N$12,ROW(C25)-ROW(C$12),0)) -> TRANSPORTE COM CAMINHÃO CARROCERIA 9T, EM VIA URBANA EM REVESTIMENTO PRIMÁRIO (UNIDADE: TXKM). AF_07/2020 | D25: =IF(OFFSET(PO!O$12,ROW(D25)-ROW(D$12),0)=0,"",OFFSET(PO!O$12,ROW(D25)-ROW(D$12),0)) -> TXKM | E25: =IF($A25<>"Serviço",0,ROUND(SUMIF($F$9:$P$9,"<>",$F25:$P25),15-13*PO!$X$3)) -> 8100 | F25: =OFFSET(PO!$P$12,ROW($E25)-ROW(F$12),0) -> 8100
A26: =OFFSET(PO!J$12,ROW(A26)-ROW($A$12),0) -> Serviço | B26: =IF($A26=0,"",OFFSET(PO!K$12,ROW(B26)-ROW(B$12),0)) -> 2.2.3. | C26: =IF(OFFSET(PO!N$12,ROW(C26)-ROW(C$12),0)=0,"",OFFSET(PO!N$12,ROW(C26)-ROW(C$12),0)) -> TRANSPORTE COM CAMINHÃO CARROCERIA 9T, EM VIA URBANA PAVIMENTADA, DMT ATÉ 30KM (UNIDADE: TXKM). AF_07/2020 | D26: =IF(OFFSET(PO!O$12,ROW(D26)-ROW(D$12),0)=0,"",OFFSET(PO!O$12,ROW(D26)-ROW(D$12),0)) -> TXKM | E26: =IF($A26<>"Serviço",0,ROUND(SUMIF($F$9:$P$9,"<>",$F26:$P26),15-13*PO!$X$3)) -> 2360.75 | F26: =OFFSET(PO!$P$12,ROW($E26)-ROW(F$12),0) -> 2360.745
A27: =OFFSET(PO!J$12,ROW(A27)-ROW($A$12),0) -> Serviço | B27: =IF($A27=0,"",OFFSET(PO!K$12,ROW(B27)-ROW(B$12),0)) -> 2.2.4. | C27: =IF(OFFSET(PO!N$12,ROW(C27)-ROW(C$12),0)=0,"",OFFSET(PO!N$12,ROW(C27)-ROW(C$12),0)) -> TRANSPORTE COM CAMINHÃO CARROCERIA 9T, EM VIA URBANA PAVIMENTADA, ADICIONAL PARA DMT EXCEDENTE A 30 KM (UNIDADE: TXKM). AF_07/2020 | D27: =IF(OFFSET(PO!O$12,ROW(D27)-ROW(D$12),0)=0,"",OFFSET(PO!O$12,ROW(D27)-ROW(D$12),0)) -> TXKM | E27: =IF($A27<>"Serviço",0,ROUND(SUMIF($F$9:$P$9,"<>",$F27:$P27),15-13*PO!$X$3)) -> 1180.37 | F27: =OFFSET(PO!$P$12,ROW($E27)-ROW(F$12),0) -> 1180.3725
A28: =OFFSET(PO!J$12,ROW(A28)-ROW($A$12),0) -> Nível 2 | B28: =IF($A28=0,"",OFFSET(PO!K$12,ROW(B28)-ROW(B$12),0)) -> 2.3. | C28: =IF(OFFSET(PO!N$12,ROW(C28)-ROW(C$12),0)=0,"",OFFSET(PO!N$12,ROW(C28)-ROW(C$12),0)) -> DRENAGEM | D28: =IF(OFFSET(PO!O$12,ROW(D28)-ROW(D$12),0)=0,"",OFFSET(PO!O$12,ROW(D28)-ROW(D$12),0)) ->  | E28: =IF($A28<>"Serviço",0,ROUND(SUMIF($F$9:$P$9,"<>",$F28:$P28),15-13*PO!$X$3)) -> 0 | F28: =OFFSET(PO!$P$12,ROW($E28)-ROW(F$12),0) -> 0
A29: =OFFSET(PO!J$12,ROW(A29)-ROW($A$12),0) -> Serviço | B29: =IF($A29=0,"",OFFSET(PO!K$12,ROW(B29)-ROW(B$12),0)) -> 2.3.1. | C29: =IF(OFFSET(PO!N$12,ROW(C29)-ROW(C$12),0)=0,"",OFFSET(PO!N$12,ROW(C29)-ROW(C$12),0)) -> TUBO DE CONCRETO PARA REDES COLETORAS DE ÁGUAS PLUVIAIS, DIÂMETRO DE 400 MM, JUNTA RÍGIDA, INSTALADO EM LOCAL COM BAIXO NÍVEL DE INTERFERÊNCIAS - FORNECIMENTO E ASSENTAMENTO. AF_12/2015 | D29: =IF(OFFSET(PO!O$12,ROW(D29)-ROW(D$12),0)=0,"",OFFSET(PO!O$12,ROW(D29)-ROW(D$12),0)) -> M | E29: =IF($A29<>"Serviço",0,ROUND(SUMIF($F$9:$P$9,"<>",$F29:$P29),15-13*PO!$X$3)) -> 40 | F29: =OFFSET(PO!$P$12,ROW($E29)-ROW(F$12),0) -> 40
A30: =OFFSET(PO!J$12,ROW(A30)-ROW($A$12),0) -> Serviço | B30: =IF($A30=0,"",OFFSET(PO!K$12,ROW(B30)-ROW(B$12),0)) -> 2.3.2. | C30: =IF(OFFSET(PO!N$12,ROW(C30)-ROW(C$12),0)=0,"",OFFSET(PO!N$12,ROW(C30)-ROW(C$12),0)) -> TRANSPORTE COM CAMINHÃO CARROCERIA 9T, EM VIA URBANA PAVIMENTADA, DMT ATÉ 30KM (UNIDADE: TXKM). AF_07/2020 | D30: =IF(OFFSET(PO!O$12,ROW(D30)-ROW(D$12),0)=0,"",OFFSET(PO!O$12,ROW(D30)-ROW(D$12),0)) -> TXKM | E30: =IF($A30<>"Serviço",0,ROUND(SUMIF($F$9:$P$9,"<>",$F30:$P30),15-13*PO!$X$3)) -> 3166.73 | F30: =OFFSET(PO!$P$12,ROW($E30)-ROW(F$12),0) -> 3166.7328
A31: =OFFSET(PO!J$12,ROW(A31)-ROW($A$12),0) -> Serviço | B31: =IF($A31=0,"",OFFSET(PO!K$12,ROW(B31)-ROW(B$12),0)) -> 2.3.3. | C31: =IF(OFFSET(PO!N$12,ROW(C31)-ROW(C$12),0)=0,"",OFFSET(PO!N$12,ROW(C31)-ROW(C$12),0)) -> TRANSPORTE COM CAMINHÃO CARROCERIA 9T, EM VIA URBANA PAVIMENTADA, ADICIONAL PARA DMT EXCEDENTE A 30 KM (UNIDADE: TXKM). AF_07/2020 | D31: =IF(OFFSET(PO!O$12,ROW(D31)-ROW(D$12),0)=0,"",OFFSET(PO!O$12,ROW(D31)-ROW(D$12),0)) -> TXKM | E31: =IF($A31<>"Serviço",0,ROUND(SUMIF($F$9:$P$9,"<>",$F31:$P31),15-13*PO!$X$3)) -> 2111.16 | F31: =OFFSET(PO!$P$12,ROW($E31)-ROW(F$12),0) -> 2111.1552
B34: =PO!$K$43 -> SÃO FRANCISCO DE ASSIS/RS
B35: Local
B37: =PO!$K$46 -> 2021-06-14
B38: Data

Sheet CFF
O1: CFF - | P1: CRONOGRAMA FÍSICO-FINANCEIRO
P2: =CHOOSE(1+LOG(1+2*(TipoOrçamento="BASE")+4*(TipoOrçamento="LICITADO")+8*(TipoOrçamento="REPROGRAMADOAC")+16*(TipoOrçamento="REPROGRAMADONPL"),2),"nada","Cronograma Base para Licitação","Cronograma Licitado","Cronograma Licitado Reprogramado","Cronograma Base para Licitação - Reprogramado") -> Cronograma Base para Licitação
A8: Nível Máx Crono | L8: =IF(MAX($A$14:$A$34)<>MAX(PO!$V$12:$V$32),"ERRO: CRONOGRAMA DESATUALIZADO",IF(OR(COUNTIF($O$16:$X$16,">1")>0,OFFSET($X$17,0,-1)<>$N$14),"ERRO: CRONOGRAMA NÃO FECHA EM 100%","")) ->  | N8: =IF(TipoOrçamento="REPROGRAMADOAC","Qtde de Medições realizadas","") -> 
A9: 2 | N9: 1 | O9: =IF(AND(TipoOrçamento="REPROGRAMADOAC",$N$9>0),$N$9-1,0) -> 0 | P9: =OFFSET(P9,0,-1)+1 -> 1 | Q9: 2 | R9: 3 | S9: 4 | T9: 5 | U9: 6 | V9: 7 | W9: 8 | AC9: =OFFSET(AC9,0,-1)+1 -> 1
A10: Lista Crono | B10: Último Nível | C10: Nível | D10: Altura | E10: N1 | F10: N2 | G10: N3 | H10: N4 | I10: Czero | J10: Cnível | K10: VTOTAL SOMA | L10: Item | M10: Descrição das Metas / Macrosserviços | N10: Valores Totais (R$) | O10: =IF(TipoOrçamento="REPROGRAMADOAC","Reinício de Obra","Início de Obra")&CHAR(10)&TEXT(DADOS!A48,"dd/mm/aa") -> Início de Obra 00/01/00 | P10: =IF(AND(TipoOrçamento="REPROGRAMADOAC",$N$9>0,N10="Valores Totais (R$)"),"Parcela "&$N$9&" Executado","Parcela "&P$9&CHAR(10)&TEXT(DATE(YEAR(DADOS!$A$48),MONTH(DADOS!$A$48)+P$9-IF(AND(TipoOrçamento="REPROGRAMADOAC",$N$9>0),$N$9,0),1),"mmm/aa")) -> Parcela 1 fev/00 | Q10: =IF(AND(TipoOrçamento="REPROGRAMADOAC",$N$9>0,O10="Valores Totais (R$)"),"Parcela "&$N$9&" Executado","Parcela "&Q$9&CHAR(10)&TEXT(DATE(YEAR(DADOS!$A$48),MONTH(DADOS!$A$48)+Q$9-IF(AND(TipoOrçamento="REPROGRAMADOAC",$N$9>0),$N$9,0),1),"mmm/aa")) -> Parcela 2 mar/00 | R10: =IF(AND(TipoOrçamento="REPROGRAMADOAC",$N$9>0,P10="Valores Totais (R$)"),"Parcela "&$N$9&" Executado","Parcela "&R$9&CHAR(10)&TEXT(DATE(YEAR(DADOS!$A$48),MONTH(DADOS!$A$48)+R$9-IF(AND(TipoOrçamento="REPROGRAMADOAC",$N$9>0),$N$9,0),1),"mmm/aa")) -> Parcela 3 abr/00 | S10: =IF(AND(TipoOrçamento="REPROGRAMADOAC",$N$9>0,Q10="Valores Totais (R$)"),"Parcela "&$N$9&" Executado","Parcela "&S$9&CHAR(10)&TEXT(DATE(YEAR(DADOS!$A$48),MONTH(DADOS!$A$48)+S$9-IF(AND(TipoOrçamento="REPROGRAMADOAC",$N$9>0),$N$9,0),1),"mmm/aa")) -> Parcela 4 mai/00 | T10: =IF(AND(TipoOrçamento="REPROGRAMADOAC",$N$9>0,R10="Valores Totais (R$)"),"Parcela "&$N$9&" Executado","Parcela "&T$9&CHAR(10)&TEXT(DATE(YEAR(DADOS!$A$48),MONTH(DADOS!$A$48)+T$9-IF(AND(TipoOrçamento="REPROGRAMADOAC",$N$9>0),$N$9,0),1),"mmm/aa")) -> Parcela 5 jun/00 | U10: =IF(AND(TipoOrçamento="REPROGRAMADOAC",$N$9>0,S10="Valores Totais (R$)"),"Parcela "&$N$9&" Executado","Parcela "&U$9&CHAR(10)&TEXT(DATE(YEAR(DADOS!$A$48),MONTH(DADOS!$A$48)+U$9-IF(AND(TipoOrçamento="REPROGRAMADOAC",$N$9>0),$N$9,0),1),"mmm/aa")) -> Parcela 6 jul/00 | V10: =IF(AND(TipoOrçamento="REPROGRAMADOAC",$N$9>0,T10="Valores Totais (R$)"),"Parcela "&$N$9&" Executado","Parcela "&V$9&CHAR(10)&TEXT(DATE(YEAR(DADOS!$A$48),MONTH(DADOS!$A$48)+V$9-IF(AND(TipoOrçamento="REPROGRAMADOAC",$N$9>0),$N$9,0),1),"mmm/aa")) -> Parcela 7 ago/00 | W10: =IF(AND(TipoOrçamento="REPROGRAMADOAC",$N$9>0,U10="Valores Totais (R$)"),"Parcela "&$N$9&" Executado","Parcela "&W$9&CHAR(10)&TEXT(DATE(YEAR(DADOS!$A$48),MONTH(DADOS!$A$48)+W$9-IF(AND(TipoOrçamento="REPROGRAMADOAC",$N$9>0),$N$9,0),1),"mmm/aa")) -> Parcela 8 set/00 | AC10: =IF(AND(TipoOrçamento="REPROGRAMADOAC",$N$9>0,AA10="Valores Totais (R$)"),"Parcela "&$N$9&" Executado","Parcela "&AC$9&CHAR(10)&TEXT(DATE(YEAR(DADOS!$A$48),MONTH(DADOS!$A$48)+AC$9-IF(AND(TipoOrçamento="REPROGRAMADOAC",$N$9>0),$N$9,0),1),"mmm/aa")) -> Parcela 1 fev/00
L11: =INDEX(PO!K$12:K$32,MATCH($A13,PO!$V$12:$V$32,0)) ->  | M11: =INDEX(PO!N$12:N$32,MATCH($A13,PO!$V$12:$V$32,0)) ->  | N11: =IF(ROUND(K13,2)=0,K13,ROUND(K13,2)) ->  | O11: Parcela (%) | P11: =IF($B13,0,P12-IF(ISNUMBER(O12),O12,0)) ->  | Q11: =IF($B13,0,Q12-IF(ISNUMBER(P12),P12,0)) ->  | AC11: =IF($B13,0,AC12-IF(ISNUMBER(AB12),AB12,0)) -> 
O12: Acumulado (%) | P12: =MIN(IF($B13,P11+IF(ISNUMBER(O12),O12,0),P13/$N11),1) ->  | Q12: =MIN(IF($B13,Q11+IF(ISNUMBER(P12),P12,0),Q13/$N11),1) ->  | AC12: =MIN(IF($B13,AC11+IF(ISNUMBER(AB12),AB12,0),AC13/$N11),1) -> 
A13: =OFFSET(A13,-CFF.NumLinha,0)+1 ->  | B13: =$C13>=OFFSET($C13,CFF.NumLinha,0) ->  | C13: =INDEX(PO!A$12:A$32,MATCH($A13,PO!$V$12:$V$32,0)) ->  | D13: =IF(ISERROR(J13),I13,SMALL(I13:J13,1))-1 ->  | E13: =IF($C13=1,OFFSET(E13,-CFF.NumLinha,0)+1,OFFSET(E13,-CFF.NumLinha,0)) ->  | F13: =IF($C13=1,0,IF($C13=2,OFFSET(F13,-CFF.NumLinha,0)+1,OFFSET(F13,-CFF.NumLinha,0))) ->  | G13: =IF(AND($C13<=2,$C13<>0),0,IF($C13=3,OFFSET(G13,-CFF.NumLinha,0)+1,OFFSET(G13,-CFF.NumLinha,0))) ->  | H13: =IF(AND($C13<=3,$C13<>0),0,IF($C13=4,OFFSET(H13,-CFF.NumLinha,0)+1,OFFSET(H13,-CFF.NumLinha,0))) ->  | I13: =MATCH(0,OFFSET($D13,1,$C13,ROW($A$33)-ROW($A13)),0) ->  | J13: =MATCH(OFFSET($D13,0,$C13)+1,OFFSET($D13,1,$C13,ROW($A$33)-ROW($A13)),0) ->  | K13: =ROUND(INDEX(PO!T$12:T$32,MATCH($A13,PO!$V$12:$V$32,0)),2)+10^-12 ->  | O13: Acumulado (R$) | P13: =IF($B13,ROUND(P12*$N11,2),ROUND(SUMIF(OFFSET($B13,1,0,$D13),TRUE,OFFSET(P13,1,0,$D13))/SUMIF(OFFSET($B13,1,0,$D13),TRUE,OFFSET($K13,1,0,$D13))*$N11,2)) ->  | Q13: =IF($B13,ROUND(Q12*$N11,2),ROUND(SUMIF(OFFSET($B13,1,0,$D13),TRUE,OFFSET(Q13,1,0,$D13))/SUMIF(OFFSET($B13,1,0,$D13),TRUE,OFFSET($K13,1,0,$D13))*$N11,2)) ->  | AC13: =IF($B13,ROUND(AC12*$N11,2),ROUND(SUMIF(OFFSET($B13,1,0,$D13),TRUE,OFFSET(AC13,1,0,$D13))/SUMIF(OFFSET($B13,1,0,$D13),TRUE,OFFSET($K13,1,0,$D13))*$N11,2)) -> 
L14: CRONOGRAMA GLOBAL DO LOTE | N14: =IF(PO!$T$12=0,10^-12,PO!$T$12) -> 112278.1 | O14: Parcela (%) | P14: =ROUND(P15/$N14,4) -> 0.4465 | Q14: =ROUND(Q15/$N14,4) -> 0.5535 | R14: 0 | S14: 0 | T14: 0 | U14: 0 | V14: 0 | W14: 0 | AC14: =ROUND(AC15/$N14,4) -> 0
O15: Parcela (R$) | P15: =P17-IF(ISNUMBER(O17),O17,0) -> 50129.04 | Q15: =Q17-IF(ISNUMBER(P17),P17,0) -> 62149.06 | R15: 0 | S15: 0 | T15: 0 | U15: 0 | V15: 0 | W15: 0 | AC15: =AC17-IF(ISNUMBER(AB17),AB17,0) -> 0
O16: Acumulado (%) | P16: =ROUND(P17/$N14,4) -> 0.4465 | Q16: =ROUND(Q17/$N14,4) -> 1 | R16: 1 | S16: 1 | T16: 1 | U16: 1 | V16: 1 | W16: 1 | AC16: =ROUND(AC17/$N14,4) -> 0
A17: 0 | D17: =ROW(D$33)-ROW(D18) -> 15 | O17: Acumulado (R$) | P17: =SUMIF(OFFSET($C17,1,0):$C$33,1,OFFSET(P17,1,0):P$33) -> 50129.04 | Q17: =SUMIF(OFFSET($C17,1,0):$C$33,1,OFFSET(Q17,1,0):Q$33) -> 112278.1 | R17: =SUMIF(OFFSET($C17,1,0):$C$33,1,OFFSET(R17,1,0):R$33) -> 112278.1 | S17: =SUMIF(OFFSET($C17,1,0):$C$33,1,OFFSET(S17,1,0):S$33) -> 112278.1 | T17: =SUMIF(OFFSET($C17,1,0):$C$33,1,OFFSET(T17,1,0):T$33) -> 112278.1 | U17: =SUMIF(OFFSET($C17,1,0):$C$33,1,OFFSET(U17,1,0):U$33) -> 112278.1 | V17: =SUMIF(OFFSET($C17,1,0):$C$33,1,OFFSET(V17,1,0):V$33) -> 112278.1 | W17: =SUMIF(OFFSET($C17,1,0):$C$33,1,OFFSET(W17,1,0):W$33) -> 112278.1 | AC17: =SUMIF(OFFSET($C17,1,0):$C$33,1,OFFSET(AC17,1,0):AC$33) -> 0
L18: =INDEX(PO!K$12:K$32,MATCH($A20,PO!$V$12:$V$32,0)) -> 1. | M18: =INDEX(PO!N$12:N$32,MATCH($A20,PO!$V$12:$V$32,0)) -> SERVIÇOS PRELIMINARES | N18: =IF(ROUND(K20,2)=0,K20,ROUND(K20,2)) -> 5403.16 | O18: Parcela (%) | P18: 1 | Q18: =IF($B20,0,Q19-IF(ISNUMBER(P19),P19,0)) -> 0 | R18: 0 | S18: 0 | T18: 0 | U18: 0 | V18: 0 | W18: 0 | AC18: =IF($B20,0,AC19-IF(ISNUMBER(AB19),AB19,0)) -> 0
O19: Acumulado (%) | P19: =MIN(IF($B20,P18+IF(ISNUMBER(O19),O19,0),P20/$N18),1) -> 1 | Q19: 1 | R19: 1 | S19: 1 | T19: 1 | U19: 1 | V19: 1 | W19: 1 | AC19: =MIN(IF($B20,AC18+IF(ISNUMBER(AB19),AB19,0),AC20/$N18),1) -> 0
A20: =OFFSET(A20,-CFF.NumLinha,0)+1 -> 1 | B20: =$C20>=OFFSET($C20,CFF.NumLinha,0) -> TRUE | C20: =INDEX(PO!A$12:A$32,MATCH($A20,PO!$V$12:$V$32,0)) -> 1 | D20: =IF(ISERROR(J20),I20,SMALL(I20:J20,1))-1 -> 2 | E20: =IF($C20=1,OFFSET(E20,-CFF.NumLinha,0)+1,OFFSET(E20,-CFF.NumLinha,0)) -> 1 | F20: =IF($C20=1,0,IF($C20=2,OFFSET(F20,-CFF.NumLinha,0)+1,OFFSET(F20,-CFF.NumLinha,0))) -> 0 | G20: =IF(AND($C20<=2,$C20<>0),0,IF($C20=3,OFFSET(G20,-CFF.NumLinha,0)+1,OFFSET(G20,-CFF.NumLinha,0))) -> 0 | H20: =IF(AND($C20<=3,$C20<>0),0,IF($C20=4,OFFSET(H20,-CFF.NumLinha,0)+1,OFFSET(H20,-CFF.NumLinha,0))) -> 0 | I20: =MATCH(0,OFFSET($D20,1,$C20,ROW($A$33)-ROW($A20)),0) -> 13 | J20: =MATCH(OFFSET($D20,0,$C20)+1,OFFSET($D20,1,$C20,ROW($A$33)-ROW($A20)),0) -> 3 | K20: =ROUND(INDEX(PO!T$12:T$32,MATCH($A20,PO!$V$12:$V$32,0)),2)+10^-12 -> 5403.16 | O20: Acumulado (R$) | P20: =IF($B20,ROUND(P19*$N18,2),ROUND(SUMIF(OFFSET($B20,1,0,$D20),TRUE,OFFSET(P20,1,0,$D20))/SUMIF(OFFSET($B20,1,0,$D20),TRUE,OFFSET($K20,1,0,$D20))*$N18,2)) -> 5403.16 | Q20: 5403.16 | R20: 5403.16 | S20: 5403.16 | T20: 5403.16 | U20: 5403.16 | V20: 5403.16 | W20: 5403.16 | AC20: =IF($B20,ROUND(AC19*$N18,2),ROUND(SUMIF(OFFSET($B20,1,0,$D20),TRUE,OFFSET(AC20,1,0,$D20))/SUMIF(OFFSET($B20,1,0,$D20),TRUE,OFFSET($K20,1,0,$D20))*$N18,2)) -> 0
L21: =INDEX(PO!K$12:K$32,MATCH($A23,PO!$V$12:$V$32,0)) -> 2. | M21: =INDEX(PO!N$12:N$32,MATCH($A23,PO!$V$12:$V$32,0)) -> CALÇAMENTO | N21: =IF(ROUND(K23,2)=0,K23,ROUND(K23,2)) -> 106874.94 | O21: Parcela (%) | P21: =IF($B23,0,P22-IF(ISNUMBER(O22),O22,0)) -> 0.418488001 | Q21: =IF($B23,0,Q22-IF(ISNUMBER(P22),P22,0)) -> 0.581511999 | R21: =IF($B23,0,R22-IF(ISNUMBER(Q22),Q22,0)) -> 0 | S21: =IF($B23,0,S22-IF(ISNUMBER(R22),R22,0)) -> 0 | T21: =IF($B23,0,T22-IF(ISNUMBER(S22),S22,0)) -> 0 | U21: =IF($B23,0,U22-IF(ISNUMBER(T22),T22,0)) -> 0 | V21: =IF($B23,0,V22-IF(ISNUMBER(U22),U22,0)) -> 0 | W21: =IF($B23,0,W22-IF(ISNUMBER(V22),V22,0)) -> 0 | AC21: =IF($B23,0,AC22-IF(ISNUMBER(AB22),AB22,0)) -> 0
O22: Acumulado (%) | P22: =MIN(IF($B23,P21+IF(ISNUMBER(O22),O22,0),P23/$N21),1) -> 0.418488001 | Q22: =MIN(IF($B23,Q21+IF(ISNUMBER(P22),P22,0),Q23/$N21),1) -> 1 | R22: =MIN(IF($B23,R21+IF(ISNUMBER(Q22),Q22,0),R23/$N21),1) -> 1 | S22: =MIN(IF($B23,S21+IF(ISNUMBER(R22),R22,0),S23/$N21),1) -> 1 | T22: =MIN(IF($B23,T21+IF(ISNUMBER(S22),S22,0),T23/$N21),1) -> 1 | U22: =MIN(IF($B23,U21+IF(ISNUMBER(T22),T22,0),U23/$N21),1) -> 1 | V22: =MIN(IF($B23,V21+IF(ISNUMBER(U22),U22,0),V23/$N21),1) -> 1 | W22: =MIN(IF($B23,W21+IF(ISNUMBER(V22),V22,0),W23/$N21),1) -> 1 | AC22: =MIN(IF($B23,AC21+IF(ISNUMBER(AB22),AB22,0),AC23/$N21),1) -> 0
A23: =OFFSET(A23,-CFF.NumLinha,0)+1 -> 2 | B23: =$C23>=OFFSET($C23,CFF.NumLinha,0) -> FALSE | C23: =INDEX(PO!A$12:A$32,MATCH($A23,PO!$V$12:$V$32,0)) -> 1 | D23: =IF(ISERROR(J23),I23,SMALL(I23:J23,1))-1 -> 9 | E23: =IF($C23=1,OFFSET(E23,-CFF.NumLinha,0)+1,OFFSET(E23,-CFF.NumLinha,0)) -> 2 | F23: =IF($C23=1,0,IF($C23=2,OFFSET(F23,-CFF.NumLinha,0)+1,OFFSET(F23,-CFF.NumLinha,0))) -> 0 | G23: =IF(AND($C23<=2,$C23<>0),0,IF($C23=3,OFFSET(G23,-CFF.NumLinha,0)+1,OFFSET(G23,-CFF.NumLinha,0))) -> 0 | H23: =IF(AND($C23<=3,$C23<>0),0,IF($C23=4,OFFSET(H23,-CFF.NumLinha,0)+1,OFFSET(H23,-CFF.NumLinha,0))) -> 0 | I23: =MATCH(0,OFFSET($D23,1,$C23,ROW($A$33)-ROW($A23)),0) -> 10 | J23: =MATCH(OFFSET($D23,0,$C23)+1,OFFSET($D23,1,$C23,ROW($A$33)-ROW($A23)),0) ->  | K23: =ROUND(INDEX(PO!T$12:T$32,MATCH($A23,PO!$V$12:$V$32,0)),2)+10^-12 -> 106874.94 | O23: Acumulado (R$) | P23: =IF($B23,ROUND(P22*$N21,2),ROUND(SUMIF(OFFSET($B23,1,0,$D23),TRUE,OFFSET(P23,1,0,$D23))/SUMIF(OFFSET($B23,1,0,$D23),TRUE,OFFSET($K23,1,0,$D23))*$N21,2)) -> 44725.88 | Q23: 106874.94 | R23: 106874.94 | S23: 106874.94 | T23: 106874.94 | U23: 106874.94 | V23: 106874.94 | W23: 106874.94 | AC23: =IF($B23,ROUND(AC22*$N21,2),ROUND(SUMIF(OFFSET($B23,1,0,$D23),TRUE,OFFSET(AC23,1,0,$D23))/SUMIF(OFFSET($B23,1,0,$D23),TRUE,OFFSET($K23,1,0,$D23))*$N21,2)) -> 0
L24: =INDEX(PO!K$12:K$32,MATCH($A26,PO!$V$12:$V$32,0)) -> 2.1. | M24: =INDEX(PO!N$12:N$32,MATCH($A26,PO!$V$12:$V$32,0)) -> MEIO FIO | N24: =IF(ROUND(K26,2)=0,K26,ROUND(K26,2)) -> 8593.19 | O24: Parcela (%) | P24: 0.2 | Q24: 0.8 | R24: =IF($B26,0,R25-IF(ISNUMBER(Q25),Q25,0)) -> 0 | S24: =IF($B26,0,S25-IF(ISNUMBER(R25),R25,0)) -> 0 | T24: =IF($B26,0,T25-IF(ISNUMBER(S25),S25,0)) -> 0 | U24: =IF($B26,0,U25-IF(ISNUMBER(T25),T25,0)) -> 0 | V24: =IF($B26,0,V25-IF(ISNUMBER(U25),U25,0)) -> 0 | W24: =IF($B26,0,W25-IF(ISNUMBER(V25),V25,0)) -> 0 | AC24: =IF($B26,0,AC25-IF(ISNUMBER(AB25),AB25,0)) -> 0
O25: Acumulado (%) | P25: =MIN(IF($B26,P24+IF(ISNUMBER(O25),O25,0),P26/$N24),1) -> 0.2 | Q25: =MIN(IF($B26,Q24+IF(ISNUMBER(P25),P25,0),Q26/$N24),1) -> 1 | R25: =MIN(IF($B26,R24+IF(ISNUMBER(Q25),Q25,0),R26/$N24),1) -> 1 | S25: =MIN(IF($B26,S24+IF(ISNUMBER(R25),R25,0),S26/$N24),1) -> 1 | T25: =MIN(IF($B26,T24+IF(ISNUMBER(S25),S25,0),T26/$N24),1) -> 1 | U25: =MIN(IF($B26,U24+IF(ISNUMBER(T25),T25,0),U26/$N24),1) -> 1 | V25: =MIN(IF($B26,V24+IF(ISNUMBER(U25),U25,0),V26/$N24),1) -> 1 | W25: =MIN(IF($B26,W24+IF(ISNUMBER(V25),V25,0),W26/$N24),1) -> 1 | AC25: =MIN(IF($B26,AC24+IF(ISNUMBER(AB25),AB25,0),AC26/$N24),1) -> 0
A26: =OFFSET(A26,-CFF.NumLinha,0)+1 -> 3 | B26: =$C26>=OFFSET($C26,CFF.NumLinha,0) -> TRUE | C26: =INDEX(PO!A$12:A$32,MATCH($A26,PO!$V$12:$V$32,0)) -> 2 | D26: =IF(ISERROR(J26),I26,SMALL(I26:J26,1))-1 -> 2 | E26: =IF($C26=1,OFFSET(E26,-CFF.NumLinha,0)+1,OFFSET(E26,-CFF.NumLinha,0)) -> 2 | F26: =IF($C26=1,0,IF($C26=2,OFFSET(F26,-CFF.NumLinha,0)+1,OFFSET(F26,-CFF.NumLinha,0))) -> 1 | G26: =IF(AND($C26<=2,$C26<>0),0,IF($C26=3,OFFSET(G26,-CFF.NumLinha,0)+1,OFFSET(G26,-CFF.NumLinha,0))) -> 0 | H26: =IF(AND($C26<=3,$C26<>0),0,IF($C26=4,OFFSET(H26,-CFF.NumLinha,0)+1,OFFSET(H26,-CFF.NumLinha,0))) -> 0 | I26: =MATCH(0,OFFSET($D26,1,$C26,ROW($A$33)-ROW($A26)),0) -> 7 | J26: =MATCH(OFFSET($D26,0,$C26)+1,OFFSET($D26,1,$C26,ROW($A$33)-ROW($A26)),0) -> 3 | K26: =ROUND(INDEX(PO!T$12:T$32,MATCH($A26,PO!$V$12:$V$32,0)),2)+10^-12 -> 8593.19 | O26: Acumulado (R$) | P26: =IF($B26,ROUND(P25*$N24,2),ROUND(SUMIF(OFFSET($B26,1,0,$D26),TRUE,OFFSET(P26,1,0,$D26))/SUMIF(OFFSET($B26,1,0,$D26),TRUE,OFFSET($K26,1,0,$D26))*$N24,2)) -> 1718.64 | Q26: 8593.19 | R26: 8593.19 | S26: 8593.19 | T26: 8593.19 | U26: 8593.19 | V26: 8593.19 | W26: 8593.19 | AC26: =IF($B26,ROUND(AC25*$N24,2),ROUND(SUMIF(OFFSET($B26,1,0,$D26),TRUE,OFFSET(AC26,1,0,$D26))/SUMIF(OFFSET($B26,1,0,$D26),TRUE,OFFSET($K26,1,0,$D26))*$N24,2)) -> 0
L27: =INDEX(PO!K$12:K$32,MATCH($A29,PO!$V$12:$V$32,0)) -> 2.2. | M27: =INDEX(PO!N$12:N$32,MATCH($A29,PO!$V$12:$V$32,0)) -> PAVIMENTAÇÃO BLOCOS DE CONCRETO INTERTRAVADO | N27: =IF(ROUND(K29,2)=0,K29,ROUND(K29,2)) -> 86014.48 | O27: Parcela (%) | P27: 0.5 | Q27: 0.5 | R27: =IF($B29,0,R28-IF(ISNUMBER(Q28),Q28,0)) -> 0 | S27: =IF($B29,0,S28-IF(ISNUMBER(R28),R28,0)) -> 0 | T27: =IF($B29,0,T28-IF(ISNUMBER(S28),S28,0)) -> 0 | U27: =IF($B29,0,U28-IF(ISNUMBER(T28),T28,0)) -> 0 | V27: =IF($B29,0,V28-IF(ISNUMBER(U28),U28,0)) -> 0 | W27: =IF($B29,0,W28-IF(ISNUMBER(V28),V28,0)) -> 0 | AC27: =IF($B29,0,AC28-IF(ISNUMBER(AB28),AB28,0)) -> 0
O28: Acumulado (%) | P28: =MIN(IF($B29,P27+IF(ISNUMBER(O28),O28,0),P29/$N27),1) -> 0.5 | Q28: =MIN(IF($B29,Q27+IF(ISNUMBER(P28),P28,0),Q29/$N27),1) -> 1 | R28: =MIN(IF($B29,R27+IF(ISNUMBER(Q28),Q28,0),R29/$N27),1) -> 1 | S28: =MIN(IF($B29,S27+IF(ISNUMBER(R28),R28,0),S29/$N27),1) -> 1 | T28: =MIN(IF($B29,T27+IF(ISNUMBER(S28),S28,0),T29/$N27),1) -> 1 | U28: =MIN(IF($B29,U27+IF(ISNUMBER(T28),T28,0),U29/$N27),1) -> 1 | V28: =MIN(IF($B29,V27+IF(ISNUMBER(U28),U28,0),V29/$N27),1) -> 1 | W28: =MIN(IF($B29,W27+IF(ISNUMBER(V28),V28,0),W29/$N27),1) -> 1 | AC28: =MIN(IF($B29,AC27+IF(ISNUMBER(AB28),AB28,0),AC29/$N27),1) -> 0
A29: =OFFSET(A29,-CFF.NumLinha,0)+1 -> 4 | B29: =$C29>=OFFSET($C29,CFF.NumLinha,0) -> TRUE | C29: =INDEX(PO!A$12:A$32,MATCH($A29,PO!$V$12:$V$32,0)) -> 2 | D29: =IF(ISERROR(J29),I29,SMALL(I29:J29,1))-1 -> 2 | E29: =IF($C29=1,OFFSET(E29,-CFF.NumLinha,0)+1,OFFSET(E29,-CFF.NumLinha,0)) -> 2 | F29: =IF($C29=1,0,IF($C29=2,OFFSET(F29,-CFF.NumLinha,0)+1,OFFSET(F29,-CFF.NumLinha,0))) -> 2 | G29: =IF(AND($C29<=2,$C29<>0),0,IF($C29=3,OFFSET(G29,-CFF.NumLinha,0)+1,OFFSET(G29,-CFF.NumLinha,0))) -> 0 | H29: =IF(AND($C29<=3,$C29<>0),0,IF($C29=4,OFFSET(H29,-CFF.NumLinha,0)+1,OFFSET(H29,-CFF.NumLinha,0))) -> 0 | I29: =MATCH(0,OFFSET($D29,1,$C29,ROW($A$33)-ROW($A29)),0) -> 4 | J29: =MATCH(OFFSET($D29,0,$C29)+1,OFFSET($D29,1,$C29,ROW($A$33)-ROW($A29)),0) -> 3 | K29: =ROUND(INDEX(PO!T$12:T$32,MATCH($A29,PO!$V$12:$V$32,0)),2)+10^-12 -> 86014.48 | O29: Acumulado (R$) | P29: =IF($B29,ROUND(P28*$N27,2),ROUND(SUMIF(OFFSET($B29,1,0,$D29),TRUE,OFFSET(P29,1,0,$D29))/SUMIF(OFFSET($B29,1,0,$D29),TRUE,OFFSET($K29,1,0,$D29))*$N27,2)) -> 43007.24 | Q29: 86014.48 | R29: 86014.48 | S29: 86014.48 | T29: 86014.48 | U29: 86014.48 | V29: 86014.48 | W29: 86014.48 | AC29: =IF($B29,ROUND(AC28*$N27,2),ROUND(SUMIF(OFFSET($B29,1,0,$D29),TRUE,OFFSET(AC29,1,0,$D29))/SUMIF(OFFSET($B29,1,0,$D29),TRUE,OFFSET($K29,1,0,$D29))*$N27,2)) -> 0
L30: =INDEX(PO!K$12:K$32,MATCH($A32,PO!$V$12:$V$32,0)) -> 2.3. | M30: =INDEX(PO!N$12:N$32,MATCH($A32,PO!$V$12:$V$32,0)) -> DRENAGEM | N30: =IF(ROUND(K32,2)=0,K32,ROUND(K32,2)) -> 12267.27 | O30: Parcela (%) | P30: =IF($B32,0,P31-IF(ISNUMBER(O31),O31,0)) -> 0 | Q30: 1 | R30: =IF($B32,0,R31-IF(ISNUMBER(Q31),Q31,0)) -> 0 | S30: =IF($B32,0,S31-IF(ISNUMBER(R31),R31,0)) -> 0 | T30: =IF($B32,0,T31-IF(ISNUMBER(S31),S31,0)) -> 0 | U30: =IF($B32,0,U31-IF(ISNUMBER(T31),T31,0)) -> 0 | V30: =IF($B32,0,V31-IF(ISNUMBER(U31),U31,0)) -> 0 | W30: =IF($B32,0,W31-IF(ISNUMBER(V31),V31,0)) -> 0 | AC30: =IF($B32,0,AC31-IF(ISNUMBER(AB31),AB31,0)) -> 0
O31: Acumulado (%) | P31: =MIN(IF($B32,P30+IF(ISNUMBER(O31),O31,0),P32/$N30),1) -> 0 | Q31: =MIN(IF($B32,Q30+IF(ISNUMBER(P31),P31,0),Q32/$N30),1) -> 1 | R31: =MIN(IF($B32,R30+IF(ISNUMBER(Q31),Q31,0),R32/$N30),1) -> 1 | S31: =MIN(IF($B32,S30+IF(ISNUMBER(R31),R31,0),S32/$N30),1) -> 1 | T31: =MIN(IF($B32,T30+IF(ISNUMBER(S31),S31,0),T32/$N30),1) -> 1 | U31: =MIN(IF($B32,U30+IF(ISNUMBER(T31),T31,0),U32/$N30),1) -> 1 | V31: =MIN(IF($B32,V30+IF(ISNUMBER(U31),U31,0),V32/$N30),1) -> 1 | W31: =MIN(IF($B32,W30+IF(ISNUMBER(V31),V31,0),W32/$N30),1) -> 1 | AC31: =MIN(IF($B32,AC30+IF(ISNUMBER(AB31),AB31,0),AC32/$N30),1) -> 0
A32: =OFFSET(A32,-CFF.NumLinha,0)+1 -> 5 | B32: =$C32>=OFFSET($C32,CFF.NumLinha,0) -> TRUE | C32: =INDEX(PO!A$12:A$32,MATCH($A32,PO!$V$12:$V$32,0)) -> 2 | D32: =IF(ISERROR(J32),I32,SMALL(I32:J32,1))-1 -> 0 | E32: =IF($C32=1,OFFSET(E32,-CFF.NumLinha,0)+1,OFFSET(E32,-CFF.NumLinha,0)) -> 2 | F32: =IF($C32=1,0,IF($C32=2,OFFSET(F32,-CFF.NumLinha,0)+1,OFFSET(F32,-CFF.NumLinha,0))) -> 3 | G32: =IF(AND($C32<=2,$C32<>0),0,IF($C32=3,OFFSET(G32,-CFF.NumLinha,0)+1,OFFSET(G32,-CFF.NumLinha,0))) -> 0 | H32: =IF(AND($C32<=3,$C32<>0),0,IF($C32=4,OFFSET(H32,-CFF.NumLinha,0)+1,OFFSET(H32,-CFF.NumLinha,0))) -> 0 | I32: =MATCH(0,OFFSET($D32,1,$C32,ROW($A$33)-ROW($A32)),0) -> 1 | J32: =MATCH(OFFSET($D32,0,$C32)+1,OFFSET($D32,1,$C32,ROW($A$33)-ROW($A32)),0) ->  | K32: =ROUND(INDEX(PO!T$12:T$32,MATCH($A32,PO!$V$12:$V$32,0)),2)+10^-12 -> 12267.27 | O32: Acumulado (R$) | P32: =IF($B32,ROUND(P31*$N30,2),ROUND(SUMIF(OFFSET($B32,1,0,$D32),TRUE,OFFSET(P32,1,0,$D32))/SUMIF(OFFSET($B32,1,0,$D32),TRUE,OFFSET($K32,1,0,$D32))*$N30,2)) -> 0 | Q32: =IF($B32,ROUND(Q31*$N30,2),ROUND(SUMIF(OFFSET($B32,1,0,$D32),TRUE,OFFSET(Q32,1,0,$D32))/SUMIF(OFFSET($B32,1,0,$D32),TRUE,OFFSET($K32,1,0,$D32))*$N30,2)) -> 12267.27 | R32: 12267.27 | S32: 12267.27 | T32: 12267.27 | U32: 12267.27 | V32: 12267.27 | W32: 12267.27 | AC32: =IF($B32,ROUND(AC31*$N30,2),ROUND(SUMIF(OFFSET($B32,1,0,$D32),TRUE,OFFSET(AC32,1,0,$D32))/SUMIF(OFFSET($B32,1,0,$D32),TRUE,OFFSET($K32,1,0,$D32))*$N30,2)) -> 0
C33: -1 | E33: 0 | F33: 0 | G33: 0 | H33: 0
L35: =DADOS!I32 -> 0
L36: Local
L38: =PO!K46 -> 2021-06-14
L39: Data
